Cogmind - Beta 17.1 @@@ ROGUE MODE // 2026.09.12 @ 20:00:23 Player: Alicianrone Result: Escaped! Performance ------------- Evolutions (9) 4500 Regions Visited (37) 7400 Robots Destroyed (519) 2595 Value Destroyed (21629) 21629 Prototype IDs (100) 2000 Alien Tech Used (3) 600 Bonus (22162) 22162 TOTAL SCORE: 60886 Bonus ------- High Alert Combat Kills 3895 Follower Combat Kills 1012 Hunted by Unchained 1000 Spooked CY-PHR 9500 Entered Garrisons 200 Aligned with FarCom 300 Met Data Miner 300 Acquired ECA 300 Met Warlord at Base 500 MAIN.C Attacked Warlord 500 Warlord Defense Kills 134 Met Warlord at Research 2000 Win 3000 Friendly Fire -479 Cogmind --------- Core Integrity 496/1600 Matter 300/300 Energy 77/100 System Corruption 24% Temperature Cool (0) Movement Walking (110) Location To Epsilon Eridani Parts ------- > --- POWER (2) -------- (None) > --- PROPULSION (10) -- Multireflex Exoskeleton Multireflex Exoskeleton > --- UTILITY (4) ------ High-capacity Storage Unit Advanced Trap Extractor (3/8 Dirty Bomb) Advanced Trap Extractor (7/8 Fire) > --- WEAPON (9) ------- (None) > --- INVENTORY (20) --- Graviton Reactor Antigrav Array Cooled Field Propulsion Drive Improved Q-thruster Large Storage Unit Weapon Mount Advanced Actuator Array Improved System Restoration Module Advanced System Restoration Module Splice Drone Bay (3/6) Hacking Drone Bay (1/1) Peak State ------------ > --- POWER ------------ Improved Quantum Reactor Improved Quantum Reactor > --- PROPULSION ------- Antigrav Array Antigrav Array Cooled Linear Gravjet Cooled Linear Gravjet Cooled Linear Gravjet Cooled Linear Gravjet Combat Linear Gravjet Combat Linear Gravjet > --- UTILITY ---------- High-capacity Storage Unit Experimental Terrain Scan Processor Experimental Core Analyzer Experimental Cloaking Device > --- WEAPON ----------- Thunder Hammer Gravity Flail Molecular Scythe Kinetic Spear Plasma Lance Plasma Lance Plasma Lance > --- INVENTORY -------- Micro Antimatter Reactor Graviton Reactor Terrain Scanner Weapon Mount Advanced Actuator Array Powered Armor Thermal Barrier Authchip [R/Combat] Authchip [Propulsion] Authchip [Device] Advanced Trap Extractor Advanced Trap Extractor Splice Drone Bay Hacking Drone Bay Dimensional Node Initializer Transdimensional Reconstructor [Rating: 204] Favorites ----------- Power Light Fission Core Engine Backup Power III Power Core Light Fission Core Reactor Micro Antimatter Reactor Propulsion Impulse Thruster Array Treads Light Treads Leg Carbon-fiber Leg Wheel Wheel Hover Unit Cooled Linear Gravjet Flight Unit Impulse Thruster Array Utility High-capacity Storage Unit Device Weapon Mount Storage High-capacity Storage Unit Processor Experimental Core Analyzer Hackware Makeshift Hacking Suite Protection Hardened Medium Armor Plating Weapon Plasma Lance Impact Weapon Mace Slashing Weapon Makeshift Axe Piercing Weapon Plasma Lance Build | -11 -10 -10 -9 -9 -9 -8 -8 -8 -7 -7 -7 -7 -6 -6 -6 -6 -6 -6 -6 -5 -5 -5 -5 -5 -5 -5 -4 -4 -4 -4 -4 -4 -4 -3 -3 -2 -1 ------- Run | Yrd Mat Min Mat Min Exi Min Mat Gar Fac Low Low Zio Pro Fac Was Fac Low Low Dat Pro Fac Was Fac Upp Upp Zhi Pro Fac Was Fac Upp Upp War Pro Res Res Acc Slots Evolved 18 | . . . 2 . . . 2 . 2 . . . . 2 . . . . . . 2 . . . . . . 2 . . . . . . 2 2 2 Power 1 | . . . . . . . . . . . . . . . . . . . . . 1 . . . . . . . . . . . . . . . . Propulsion 8 | . . . 1 . . . 1 . 2 . . . . 1 . . . . . . 1 . . . . . . 1 . . . . . . 1 . . Utility 2 | . . . 1 . . . 1 . . . . . . . . . . . . . . . . . . . . . . . . . . . . . . Weapon 7 | . . . . . . . . . . . . . . 1 . . . . . . . . . . . . . 1 . . . . . . 1 2 2 Parts Attached 338 | 4 10 2 18 4 . 5 16 9 33 3 1 4 1 13 1 7 8 1 . 4 16 1 12 2 5 3 . 8 . 9 . 3 14 1 16 51 53 Power 46 | 1 1 . 3 . . 1 3 1 4 . . . 1 1 . 1 . . . . 2 . 4 1 . 1 . . . . . . 1 . 6 6 8 Engine 14 | 1 1 . 3 . . 1 3 . 3 . . . 1 . . . . . . . 1 . . . . . . . . . . . . . . . . Core 14 | . . . . . . . . 1 1 . . . . 1 . 1 . . . . 1 . 3 1 . . . . . . . . . . 3 1 1 Reactor 18 | . . . . . . . . . . . . . . . . . . . . . . . 1 . . 1 . . . . . . 1 . 3 5 7 Propulsion 117 | 2 2 2 9 1 . 2 6 4 16 . 1 . . 5 . 2 2 . . 1 4 1 2 . . . . 3 . . . 1 4 . 1 23 23 Treads 8 | . 2 . 3 . . . 2 1 . . . . . . . . . . . . . . . . . . . . . . . . . . . . . Leg 17 | . . 1 1 . . 2 . 3 7 . . . . . . . . . . . . . . . . . . . . . . . . . . . 3 Wheel 13 | 2 . 1 5 1 . . 3 . 1 . . . . . . . . . . . . . . . . . . . . . . . . . . . . Hover 32 | . . . . . . . . . 1 . . . . . . . . . . . . . . . . . . . . . . . . . . 14 17 Flight 47 | . . . . . . . 1 . 7 . 1 . . 5 . 2 2 . . 1 4 1 2 . . . . 3 . . . 1 4 . 1 9 3 Utility 129 | 1 5 . 6 2 . 2 5 4 9 2 . 2 . 5 . 4 2 1 . 1 10 . 5 1 3 2 . 5 . 5 . 2 4 1 7 17 16 Device 57 | . 1 . 1 2 . . 4 . 3 1 . 1 . 3 . 3 1 1 . . 3 . 1 1 2 1 . 1 . 4 . 1 2 1 4 8 7 Storage 11 | 1 2 . . . . . . . . . . . . . . . . . . . 1 . . . . . . 1 . . . 1 1 . . 2 2 Processor 12 | . . . . . . . . . 2 1 . . . 1 . 1 . . . . . . . . . . . . . . . . 1 . . 6 . Hackware 15 | . . . . . . . . . 2 . . 1 . . . . . . . . 2 . 2 . . . . 3 . 1 . . . . . 1 3 Protection 34 | . 2 . 5 . . 2 1 4 2 . . . . 1 . . 1 . . 1 4 . 2 . 1 1 . . . . . . . . 3 . 4 Artifact . | . . . . . . . . . . . . . . . . . . . . . . . . . . . . . . . . . . . . . . Weapon 46 | . 2 . . 1 . . 2 . 4 1 . 2 . 2 1 . 4 . . 2 . . 1 . 2 . . . . 4 . . 5 . 2 5 6 Energy Gun . | . . . . . . . . . . . . . . . . . . . . . . . . . . . . . . . . . . . . . . Energy Cannon . | . . . . . . . . . . . . . . . . . . . . . . . . . . . . . . . . . . . . . . Ballistic Gun . | . . . . . . . . . . . . . . . . . . . . . . . . . . . . . . . . . . . . . . Ballistic Cannon . | . . . . . . . . . . . . . . . . . . . . . . . . . . . . . . . . . . . . . . Launcher . | . . . . . . . . . . . . . . . . . . . . . . . . . . . . . . . . . . . . . . Special Weapon . | . . . . . . . . . . . . . . . . . . . . . . . . . . . . . . . . . . . . . . Impact Weapon 13 | . 2 . . . . . 2 . 1 . . 1 . 1 1 . 1 . . . . . . . . . . . . 2 . . . . . 1 1 Slashing Weapon 19 | . . . . . . . . . 2 1 . 1 . 1 . . 2 . . 2 . . . . 1 . . . . . . . 2 . 1 1 5 Piercing Weapon 14 | . . . . 1 . . . . 1 . . . . . . . 1 . . . . . 1 . 1 . . . . 2 . . 3 . 1 3 . Special Melee Weapon . | . . . . . . . . . . . . . . . . . . . . . . . . . . . . . . . . . . . . . . Unidentified Prototypes 56 | . . . . 1 . . 2 . 5 . . 1 . 2 1 1 . . . . 4 1 2 . . 3 . 1 . 2 . . 6 . 4 13 7 Corrupted Parts 3 | . . . . . . . . . . . . . . . . . . . . 1 . . . . . . . . . . . . 2 . . . . System Corruption 22 | . . . . . . . . . . . . . . . . . . . . 10 . . . . . . . . . . . . 12 . . . . Parts Lost 119 | . 2 2 11 . . 6 3 5 2 . 1 . 1 . . 2 6 . . 4 2 . 6 . 2 . 1 1 . 1 1 1 . . 6 8 45 Power 20 | . 1 1 1 . . 1 1 1 . . . . 1 . . . . . . . 1 . 2 . . . . . . 1 1 . . . 1 3 4 Propulsion 50 | . 1 1 7 . . 3 2 1 1 . 1 . . . . 1 2 . . 1 . . . . . . . 1 . . . . . . 4 2 22 Utility 24 | . . . 3 . . 2 . 2 . . . . . . . 1 2 . . 1 1 . 1 . 2 . . . . . . . . . 1 . 8 Weapon 25 | . . . . . . . . 1 1 . . . . . . . 2 . . 2 . . 3 . . . 1 . . . . 1 . . . 3 11 Highest Loss Streak 9 | . 1 2 2 . . 6 1 1 1 . 1 . 1 . . 1 2 . . 4 2 . 2 . 1 . 1 1 . 1 1 1 . . 2 3 9 To Critical Strikes 1 | . . . . . . . . 1 . . . . . . . . . . . . . . . . . . . . . . . . . . . . . Average Backups 13 | 1 8 10 14 17 16 16 16 16 17 10 9 10 9 9 10 9 9 10 10 9 10 11 13 15 14 13 15 14 15 14 15 15 15 15 14 15 15 Power 1 | . . . . 1 3 3 4 3 2 . . . . . 1 1 1 1 1 1 . . . 1 1 1 1 . . . . . . . . 1 1 Propulsion 2 | 1 1 2 4 5 2 1 2 3 3 1 . . . . . . . 1 1 1 . 1 2 2 2 2 2 1 2 2 3 3 2 2 1 . 1 Utility 9 | . 4 6 7 9 8 8 8 9 11 8 8 8 7 7 8 7 6 6 7 6 8 9 10 11 10 9 10 10 11 10 10 10 10 11 11 11 11 Weapon . | . 1 2 2 2 2 2 1 . . . . . . . . . . . . . . . . . . . . . . . . . . . . . . Tool/Special . | . . . . . . . . . . . . . . . . . . . . . . . . . . . . . . . . . . . . . . Unused Backups 62 | . 1 1 7 1 3 . 5 2 15 1 . 2 . 1 . 2 . . . . 3 . . . . . . 1 . 1 1 . 1 . 2 1 11 Power 7 | . . . . . . . 2 1 3 . . . . . . 1 . . . . . . . . . . . . . . . . . . . . . Propulsion 20 | . 1 . 2 . 3 . . . 3 . . 1 . . . . . . . . 1 . . . . . . . . 1 . . 1 . . 1 6 Utility 30 | . . 1 3 1 . . 2 1 7 1 . 1 . 1 . 1 . . . . 2 . . . . . . 1 . . 1 . . . 2 . 5 Weapon 4 | . . . 2 . . . 1 . 1 . . . . . . . . . . . . . . . . . . . . . . . . . . . . Tool/Special 1 | . . . . . . . . . 1 . . . . . . . . . . . . . . . . . . . . . . . . . . . . Average Slot Usage (%) 87 | . 95 82 90 100 100 97 96 90 97 100 100 100 98 97 100 99 87 92 93 82 84 82 78 69 75 77 77 74 78 80 86 80 87 89 85 86 63 Engine 3 | . 13 . 7 11 11 10 8 6 6 7 7 7 5 . . . . . . . . . . . . . . . . 1 2 . 4 5 2 2 . Core 2 | . . . . . . . . 2 . . . . . 5 6 6 6 6 6 6 9 11 10 10 6 5 5 5 5 2 . . . . 1 . 1 Reactor 1 | . . . . . . . . . . . . . . . . . . . . . . . . . 3 5 5 5 5 5 5 5 5 5 4 3 6 Treads 1 | . 11 . 2 . . . 10 6 . . . . . . . . . . . . . . . . . . . . . . . . . . . . . Leg 5 | . . . 9 9 11 11 4 16 31 . . . . . . . . . . . . . . . . . . . . . . . . . . . . Wheel 5 | . 16 25 17 23 22 20 18 9 1 . . . . . . . . . . . . . . . . . . . . . . . . . . . . Hover 4 | . . . . . . . . . . . . . . . . . . . . . . . . . . . . . . . . . . . . 27 25 Flight 18 | . . . . . . . . . 10 46 46 46 46 44 46 45 39 40 40 34 32 29 29 29 29 29 29 32 36 36 36 36 36 36 34 9 1 Device 8 | . . 13 8 11 11 10 11 4 12 7 6 7 4 6 6 12 14 13 13 15 9 11 7 10 6 5 5 3 . 5 9 11 7 3 7 4 5 Storage 6 | . 14 14 11 11 11 11 9 9 7 7 7 7 7 6 6 6 6 6 6 6 5 5 5 5 5 5 5 5 5 5 5 5 5 5 4 4 4 Processor 1 | . . . . . . . . . 1 14 15 14 6 . . . . . . . . . . . . . . . . . . . 1 5 4 6 3 Hackware 1 | . . . . . . . . . 4 . . . 7 6 6 5 . . . . . . 2 . . . . 2 5 2 . . . . . . . Protection 6 | . 12 . 12 11 11 11 15 17 2 . . . 2 5 6 . 4 5 6 3 6 5 4 5 5 6 11 9 10 7 5 3 6 6 1 . 1 Impact Weapon 9 | . 24 28 21 20 11 11 9 15 11 . . . 7 6 6 6 6 13 13 4 5 5 3 . . . . . . . 10 10 5 5 4 6 4 Slashing Weapon 4 | . . . . . . . . . 2 15 15 14 7 12 13 13 7 6 6 9 11 11 9 . 3 5 5 5 5 5 5 2 7 . . 2 6 Piercing Weapon 4 | . . . . 1 11 11 9 2 . . . . . . . . . . . . . . . 5 10 11 6 5 5 6 5 5 6 15 17 14 2 Peak Build Rating 204 | 4 11 12 19 23 22 24 34 42 57 58 58 61 57 73 72 80 82 81 80 81 102 103 113 104 115 116 115 125 121 139 142 138 155 159 180 204 196 Average Rating 83 | 2 10 9 15 19 21 21 29 36 48 57 56 56 55 65 70 71 77 79 80 69 94 100 105 103 108 110 111 121 121 125 138 133 141 157 164 177 139 On Entrance 78 | . 4 11 10 19 21 22 24 31 38 55 58 56 57 53 70 72 75 79 80 80 72 99 101 94 104 107 115 111 121 121 139 137 132 155 155 134 188 Avg Prop Armor Cover (%) 4 | . 11 10 8 6 6 6 9 9 11 . . 4 5 4 . 2 1 3 3 3 1 1 1 . . . . 2 1 1 . . 1 . 2 6 5 Naked Turns . | . . . . . . . . . . . . . . . . . . . . . . . . . . . . . . . . . . . . . . Heaviest Build 108 | 10 54 54 59 59 59 62 74 98 85 33 31 28 31 38 38 41 42 36 34 35 56 54 67 64 68 62 65 63 59 66 70 67 65 65 67 97 108 Greatest Support 136 | 20 40 20 40 30 20 20 30 22 107 33 34 34 34 40 39 41 44 44 38 43 57 65 70 64 70 64 67 71 63 73 70 70 71 71 80 136 136 Greatest Overweight (x) 8 | . 5 5 5 2 2 6 6 8 7 . . . . . . . 1 . . . . . 1 . 1 . . 1 . . . . . . 1 1 3 Average Overweight (x) . | . 2 3 3 1 2 2 3 6 . . . . . . . . . . . . . . . . . . . . . . . . . . . . . Largest Inventory Capacity 20 | 8 20 20 20 20 20 20 20 20 20 10 10 10 10 10 10 10 10 10 10 10 15 15 15 15 15 15 15 15 15 15 15 15 15 15 15 20 20 Average Capacity 16 | 6 14 20 20 20 20 20 20 20 17 10 10 10 10 10 10 10 10 10 10 10 12 15 15 15 15 15 15 15 15 15 15 15 15 15 15 15 19 Most Carried 20 | 2 11 19 20 20 20 20 20 20 20 10 10 10 10 10 10 10 10 10 10 10 11 13 15 15 15 15 15 15 15 15 15 15 15 15 15 16 20 Average Carried 14 | 1 8 12 18 19 19 19 19 19 17 10 9 9 9 9 10 9 9 9 10 9 10 11 14 14 14 13 15 14 15 14 14 14 15 15 14 15 16 Final Capacity 20 | 8 20 20 20 20 20 20 20 20 10 10 10 10 10 10 10 10 10 10 10 10 15 15 15 15 15 15 15 15 15 15 15 15 15 15 15 20 20 Final Carried 20 | 2 8 19 20 20 20 17 20 20 10 10 10 10 8 10 10 10 10 10 10 10 10 13 15 15 13 15 15 15 15 15 15 15 15 15 15 16 12 Class Distribution -------------------- 27% | Trapper-Sprinter 22% | Mutant 19% | Sprinter 7% | Scavenger-Mutant 5% | Machinist-Sprinter 5% | Gladiator 5% | Trapper-Mutant Dominant Class ---------------- Mutant | -10/Materials Mutant | -10/Mines Mutant | -9/Materials Mutant | -9/Mines Mutant | -9/Exiles Mutant | -8/Mines Mutant | -8/Materials Scavenger-Mutant | -8/Garrison Gladiator | -7/Factory Sprinter | -7/Lower Caves Sprinter | -7/Lower Caves Sprinter | -7/Zion Derelict-Sprinter | -6/Proximity Caves Sprinter | -6/Factory Sprinter | -6/Waste Sprinter | -6/Factory Sprinter | -6/Lower Caves Trapper-Sprinter | -6/Lower Caves Trapper-Sprinter | -6/Data Miner Trapper-Sprinter | -5/Proximity Caves Trapper-Sprinter | -5/Factory Trapper-Sprinter | -5/Waste Trapper-Sprinter | -5/Factory Sprinter | -5/Upper Caves Sprinter | -5/Upper Caves Sprinter | -5/Zhirov Sprinter | -4/Proximity Caves Machinist-Sprinter | -4/Factory Machinist-Sprinter | -4/Waste Machinist-Sprinter | -4/Factory Machinist-Sprinter | -4/Upper Caves Trapper-Sprinter | -4/Upper Caves Trapper-Sprinter | -4/Warlord Trapper-Sprinter | -3/Proximity Caves Trapper-Sprinter | -3/Research Trapper-Sprinter | -2/Research Trapper-Mutant | -1/Access Resources | -11 -10 -10 -9 -9 -9 -8 -8 -8 -7 -7 -7 -7 -6 -6 -6 -6 -6 -6 -6 -5 -5 -5 -5 -5 -5 -5 -4 -4 -4 -4 -4 -4 -4 -3 -3 -2 -1 ----------- Run | Yrd Mat Min Mat Min Exi Min Mat Gar Fac Low Low Zio Pro Fac Was Fac Low Low Dat Pro Fac Was Fac Upp Upp Zhi Pro Fac Was Fac Upp Upp War Pro Res Res Acc Matter Collected 8094 | 223 257 40 270 65 . 50 210 105 535 73 137 50 65 230 10 295 161 130 . 220 400 37 575 54 77 70 15 40 . 437 75 205 303 68 562 875 1175 Remotely . | . . . . . . . . . . . . . . . . . . . . . . . . . . . . . . . . . . . . . . Salvage Created 27050 | . 757 316 1751 56 . 139 1613 1223 944 28 378 . 99 671 52 742 339 409 . 278 700 . 1475 70 238 222 51 44 . 773 418 338 55 148 1760 3486 7477 Parts 886 | . 22 9 64 6 . 4 46 25 45 3 11 . 5 19 . 26 12 12 . 7 26 . 51 . 2 2 4 2 . 24 14 9 1 10 82 94 249 Haulers Intercepted 56 | . 2 . 5 . . . 4 . 5 . . . . 2 . 4 . . . 1 3 . 6 . . . . . . 3 . . . . 5 8 8 Recyclers Shooed 4 | . . 1 . 1 . . . . . . . . . . . . . . . . . . 1 . . . . . . . . . . . . . 1 Parts Field Recycled . | . . . . . . . . . . . . . . . . . . . . . . . . . . . . . . . . . . . . . . Retrieved Matter . | . . . . . . . . . . . . . . . . . . . . . . . . . . . . . . . . . . . . . . Parts Self-Destructed 138 | . . . . . . . . . . 4 38 . 7 . . . 23 12 . 7 . . . 7 2 1 4 . . . 14 9 . 10 . . . Prevented 22 | . . . . . . . . . . . . . 1 . . . 4 2 . 9 . . . 4 2 . . . . . . . . . . . . Parts Restored . | . . . . . . . . . . . . . . . . . . . . . . . . . . . . . . . . . . . . . . Kills | -11 -10 -10 -9 -9 -9 -8 -8 -8 -7 -7 -7 -7 -6 -6 -6 -6 -6 -6 -6 -5 -5 -5 -5 -5 -5 -5 -4 -4 -4 -4 -4 -4 -4 -3 -3 -2 -1 ------- Run | Yrd Mat Min Mat Min Exi Min Mat Gar Fac Low Low Zio Pro Fac Was Fac Low Low Dat Pro Fac Was Fac Upp Upp Zhi Pro Fac Was Fac Upp Upp War Pro Res Res Acc Combat Hostiles Destroyed 346 | . 23 2 34 3 . 3 27 31 15 . 6 . 3 5 . 10 10 4 . 3 5 . 13 . 5 . 1 . . 2 5 3 1 6 16 32 78 Melee 262 | . 14 1 19 3 . 1 17 10 12 . 6 . 3 5 . 9 9 3 . 2 4 . 12 . 5 . 1 . . 2 5 3 1 5 16 27 67 Classes Destroyed 22 | . 5 4 3 . . . 1 1 1 1 . . . . 1 . . . . 1 . . . . . . . . . . . . . 1 1 2 . Worker 23 | . . 4 9 1 . . 1 . 1 . . . . . . . . . . . . . . . . . . . . 1 . . . . . . 6 Builder 4 | . . 1 1 . . . . . . . . . . . . 1 . . . . . . . . . . . . . . . . . . 1 . . Tunneler 8 | . . 2 3 . . . 3 . . . . . . . . . . . . . . . . . . . . . . . . . . . . . . Hauler 56 | . 2 . 5 . . . 4 . 5 . . . . 2 . 4 . . . 1 3 . 6 . . . . . . 3 . . . . 5 8 8 Recycler 19 | . . 1 3 . . . . . . . . . . 1 . . . . . . . . 1 . . . . . . 2 . . . . . . 11 Minesweeper 6 | . . . . . . . . . . 1 1 . . . . . . 2 . 1 . . . . . . . . . . . 1 . . . . . Mechanic 2 | . . . 1 . . . . . . . . . . . . . . . . . . . . . . . . . . . . . . . . 1 . Operator 16 | . 1 . 3 . . . 2 . 3 . . . . . . 1 . . . . 1 . . . . . . . . 1 . . . . 3 1 . Drone 5 | . . . . . . . . . . . . . . . . . . . . . . . . . . . . . . . . . . 2 2 . 1 Watcher 36 | . 1 . 5 . . . . 2 3 . . . . 3 . 2 . . . . 2 . 1 . . . . 1 . 1 . . . . 5 4 6 Swarmer 89 | . 7 . 13 3 . . . 9 9 . 4 . 1 . . 9 7 . . 1 . . 4 . 1 . . . . . 4 . . 4 . . 13 Cutter 8 | . . . . . . . . . . . . . . . . . . . . . . . . . . . . . . . . . . . 4 . 4 Grunt 122 | . 16 3 12 . . 3 20 8 . . 2 . . 3 . . 3 3 . 1 . . . . . . . . . 1 . 1 1 . 2 17 26 Duelist 2 | . . . 1 . . . . . . . . . . . . . . . . . . . . . . . . . . . . . . . . . 1 Sentry 55 | . . . 8 . . . 6 8 4 . . . 1 2 . 1 . . . . 3 . 5 . . . . . . . . 2 . . 3 5 7 Specialist 2 | . . . . . . . . 2 . . . . . . . . . . . . . . . . . . . . . . . . . . . . . Hunter 21 | . . . . . . . 1 4 . . . . . . . . . . . . . . 1 . . . . . . 1 . . . . . 2 12 Programmer 33 | . . . . . . . . . 2 . . . 1 . . . . 1 . . 2 . 3 . 4 . 1 . . . . . . . 4 1 14 Behemoth 3 | . . . . . . . . . . . . . . . . . . . . 1 . . . . . . . . . . 1 . . . 1 . . Striker 1 | . . . . . . . . . . . . . . . . . . . . . . . . . . . . . . . . . . . . 1 . Executioner 6 | . . . . . . . . . . . . . . . . . . . . . . . . . . . . . . . . . . . . 6 . Packrat 2 | . . . . . . . . . . . . . . . . . . 1 . . . . . 1 . . . . . . . . . . . . . Thug 1 | . . . . . . . . 1 . . . . . . . . . . . . . . . . . . . . . . . . . . . . . Butcher 1 | . . . . . . . . 1 . . . . . . . . . . . . . . . . . . . . . . . . . . . . . Martyr 1 | . . . . . . . . . . . . . . . 1 . . . . . . . . . . . . . . . . . . . . . . Best Kill Streak 11 | . 6 2 10 3 . 3 11 4 4 1 2 . 1 3 . 3 4 3 . 2 2 . 5 . 4 . 1 1 . 4 4 2 1 4 5 8 9 Combat Bots Only 11 | . 6 1 8 3 . 3 11 4 4 . 2 . 1 2 . 3 4 2 . 1 2 . 5 . 4 . 1 . . 1 4 1 1 4 4 5 9 Max Kills in Single Turn 2 | . 2 2 1 1 . 1 1 2 1 1 1 . 1 1 1 1 1 1 . 1 1 . 1 1 1 . 1 1 . 1 2 1 1 1 1 1 2 Gunslinging . | . . . . . . . . . . . . . . . . . . . . . . . . . . . . . . . . . . . . . . Exploded . | . . . . . . . . . . . . . . . . . . . . . . . . . . . . . . . . . . . . . . Melee 2 | . 2 1 1 1 . 1 1 2 1 . 1 . 1 1 . 1 1 1 . 1 1 . 1 . 1 . 1 . . 1 2 1 1 1 1 1 1 Uniques/NPCs Destroyed . | . . . . . . . . . . . . . . . . . . . . . . . . . . . . . . . . . . . . . . Combat | -11 -10 -10 -9 -9 -9 -8 -8 -8 -7 -7 -7 -7 -6 -6 -6 -6 -6 -6 -6 -5 -5 -5 -5 -5 -5 -5 -4 -4 -4 -4 -4 -4 -4 -3 -3 -2 -1 -------- Run | Yrd Mat Min Mat Min Exi Min Mat Gar Fac Low Low Zio Pro Fac Was Fac Low Low Dat Pro Fac Was Fac Upp Upp Zhi Pro Fac Was Fac Upp Upp War Pro Res Res Acc Hostile Shots Fired 2010 | . 118 7 219 26 . 39 120 163 111 2 41 . 54 9 . 45 68 16 . 56 16 . 80 2 43 . 16 2 . 23 28 4 16 4 136 75 471 Missed 672 | . 34 . 62 6 . 7 27 32 38 . 18 . 21 3 . 23 19 12 . 29 3 . 26 1 17 . 10 1 . 11 13 1 8 2 60 27 161 Deflected 1 | . . . . . . . . . . . . . . . . . . . . . . . . . . . . . . . . . . . . . 1 Hits 1338 | . 84 7 157 20 . 32 93 131 73 2 23 . 33 6 . 22 49 4 . 27 13 . 54 1 26 . 6 1 . 12 15 3 8 2 76 48 310 Melee 30 | . . . 5 . . . . . . . . . . . . . . . . . . . . . . . . . . . . . . . 11 5 9 Projectile 1308 | . 84 7 152 20 . 32 93 131 73 2 23 . 33 6 . 22 49 4 . 27 13 . 54 1 26 . 6 1 . 12 15 3 8 2 65 43 301 AOE 11 | . 1 . . . . . . . . . . . . . . . . . . . . . 3 . . . . . . . . . 1 . 2 . 4 Critical Strikes 62 | . . . 5 . . 1 6 3 3 . 1 . 1 . . 1 2 . . 2 1 . 1 . 5 . 1 . . . . . 1 . 10 2 16 Actively Blocked 9 | . . . . . . . . . . . . . . . . . . . . . . . . . . . . . . . . . . . 8 . 1 Part Disruptions 5 | . . . . . . . . . . . . . . . . . . . . . . . . . . . . . . . . . . . 4 . 1 Damage Taken 23090 | . 939 89 1690 117 . 462 1004 1400 1037 29 360 . 344 107 . 330 774 67 . 393 395 . 1125 19 409 . 125 22 . 269 259 96 261 46 1844 1559 7519 Core 3354 | . 191 . 270 17 . 95 70 106 193 . 90 . 96 12 . 55 68 15 . 96 131 . 116 . 21 . . . . . . . 22 . 431 210 1049 Absorbed by Shields 952 | . . . 143 51 . 70 368 215 . . . . . . . . . . . . . . . . . . . . . . . . 24 . . . 81 Redirected to Shielding 494 | . . . . . . . . . . . . . . . . . 21 32 . 30 51 . . . . . 15 . . 71 11 21 47 . 91 . 104 Ignored by Resistances 902 | . . . . . . . . 230 48 . . . . . . . . . . . . . . . . . . . . . . . . . . . 624 Regen/Repaired (Parts) 904 | . . . 106 . . . . . 89 . . . . 52 5 30 . . . . . . 258 . . . . 15 . . . . 242 . . 107 . Core Remaining (%) 60 | 100 . 23 . . . 4 . 68 . . . . 45 . . . . . . 71 . . . . . . 73 . . . . . . 98 66 85 31 Volleys Fired . | . . . . . . . . . . . . . . . . . . . . . . . . . . . . . . . . . . . . . . Largest . | . . . . . . . . . . . . . . . . . . . . . . . . . . . . . . . . . . . . . . Hottest . | . . . . . . . . . . . . . . . . . . . . . . . . . . . . . . . . . . . . . . Shots Fired . | . . . . . . . . . . . . . . . . . . . . . . . . . . . . . . . . . . . . . . Gun . | . . . . . . . . . . . . . . . . . . . . . . . . . . . . . . . . . . . . . . Cannon . | . . . . . . . . . . . . . . . . . . . . . . . . . . . . . . . . . . . . . . Launcher . | . . . . . . . . . . . . . . . . . . . . . . . . . . . . . . . . . . . . . . Special . | . . . . . . . . . . . . . . . . . . . . . . . . . . . . . . . . . . . . . . Kinetic . | . . . . . . . . . . . . . . . . . . . . . . . . . . . . . . . . . . . . . . Thermal . | . . . . . . . . . . . . . . . . . . . . . . . . . . . . . . . . . . . . . . Explosive . | . . . . . . . . . . . . . . . . . . . . . . . . . . . . . . . . . . . . . . Electromagnetic . | . . . . . . . . . . . . . . . . . . . . . . . . . . . . . . . . . . . . . . Robot Hit Streak . | . . . . . . . . . . . . . . . . . . . . . . . . . . . . . . . . . . . . . . Robot Miss Streak . | . . . . . . . . . . . . . . . . . . . . . . . . . . . . . . . . . . . . . . Penetration Max . | . . . . . . . . . . . . . . . . . . . . . . . . . . . . . . . . . . . . . . Secondary Targets . | . . . . . . . . . . . . . . . . . . . . . . . . . . . . . . . . . . . . . . Shots Hit Robots 1314 | . 64 14 148 10 . 9 95 81 54 1 23 . 15 23 5 33 25 16 . 19 32 . 76 1 14 8 4 4 . 25 16 7 5 8 75 134 270 Core Hits 434 | . 11 3 27 2 . 2 26 12 15 . 10 . 3 8 1 13 7 6 . 5 9 . 23 1 7 4 2 2 . 10 7 4 1 5 34 52 122 Critical Kills 17 | . 2 1 6 . . . 1 1 . . . . . . . . . . . . . . . . . . . . . . 1 . . . . . 5 Critical Parts Destroyed 101 | . 7 3 23 1 . 1 9 10 6 . . . . 3 . 1 3 1 . . . . 3 . . . . . . 1 1 . . 1 2 7 18 Critical Strikes 203 | . 9 4 29 1 . 2 12 15 9 . 2 . 1 4 . 2 4 3 . 1 4 . 11 1 2 . 1 . . 3 2 2 1 1 9 24 44 Smash 123 | . 9 4 29 1 . 1 10 15 6 . . . . 3 . 1 3 1 . . . . 3 . . . . . . 1 2 . . 1 2 7 24 Sever 45 | . . . . . . . . . 2 . 2 . 1 1 . 1 1 2 . 1 4 . 8 . 2 . 1 . . 1 . . . . . 4 14 Impale 35 | . . . . . . 1 2 . 1 . . . . . . . . . . . . . . 1 . . . . . 1 . 2 1 . 7 13 6 Melee Attacks 2117 | . 92 17 190 15 . 15 141 125 113 1 36 2 27 46 7 69 43 21 . 24 55 . 134 4 16 9 5 18 . 56 20 16 9 12 173 194 412 Impact 900 | . 92 17 190 13 . 5 88 112 67 . . . 6 12 1 20 9 8 . 1 9 . 24 . . . . . . 3 5 2 2 2 21 34 157 Slashing 688 | . . . . . . . . . 33 1 36 2 21 34 6 49 31 13 . 23 46 . 110 . 11 4 4 10 . 39 4 6 1 . . 23 181 Piercing 529 | . . . . 2 . 10 53 13 13 . . . . . . . 3 . . . . . . 4 5 5 1 8 . 14 11 8 6 10 152 137 74 Sneak Attacks 255 | . 4 11 28 4 . . 17 7 13 1 1 . . 13 5 12 1 3 . 8 9 . 12 1 . . 1 1 . 10 1 3 . 2 20 29 38 Combat Hostiles 72 | . 1 . 2 1 . . 3 4 1 . . . . 7 . 3 1 . . . 5 . 4 . . . 1 . . 1 . 1 . 2 5 18 12 Follow-up Attacks 360 | . 13 2 25 . . 2 17 19 6 . 3 . 5 7 1 6 5 4 . 2 7 . 21 . 3 4 . 1 . 1 6 1 2 2 36 70 89 Damage Inflicted 69150 | . 2179 755 5285 391 . 285 3935 3610 2868 77 984 . 563 1610 379 2398 1459 908 . 1026 1677 . 3669 91 556 606 181 235 . 1714 965 535 318 478 4395 7999 17019 Guns . | . . . . . . . . . . . . . . . . . . . . . . . . . . . . . . . . . . . . . . Cannons . | . . . . . . . . . . . . . . . . . . . . . . . . . . . . . . . . . . . . . . Explosions 978 | . . . . . . . . 339 . . . . . . . . . . . . . . . . . . . . . . . . . . . . 639 Melee 68113 | . 2179 755 5285 391 . 285 3935 3271 2868 77 984 . 563 1610 379 2398 1459 908 . 1026 1677 . 3669 91 556 606 181 235 . 1714 965 535 318 478 4395 7999 16321 Ramming 59 | . . . . . . . . . . . . . . . . . . . . . . . . . . . . . . . . . . . . . 59 Kinetic . | . . . . . . . . . . . . . . . . . . . . . . . . . . . . . . . . . . . . . . Thermal . | . . . . . . . . . . . . . . . . . . . . . . . . . . . . . . . . . . . . . . Explosive 339 | . . . . . . . . 339 . . . . . . . . . . . . . . . . . . . . . . . . . . . . . Electromagnetic 639 | . . . . . . . . . . . . . . . . . . . . . . . . . . . . . . . . . . . . . 639 Impact 31414 | . 2179 755 5285 335 . 168 2633 3134 1800 . . . 80 792 94 1347 507 236 . 80 603 . 1091 . . . . . . 200 288 96 133 55 1059 1827 6637 Slashing 21402 | . . . . . . . . . 779 77 984 . 483 818 285 1051 952 672 . 946 1074 . 2578 . 422 350 181 153 . 1089 85 . . . . 967 7456 Piercing 15297 | . . . . 56 . 117 1302 137 289 . . . . . . . . . . . . . . 91 134 256 . 82 . 425 592 439 185 423 3336 5205 2228 Highest Corruption 24 | . . . . . . . . . 3 . . . 1 . . 1 1 1 1 11 2 2 2 2 6 . 1 . 9 9 . . 12 12 4 6 24 Average Corruption 3 | . . . . . . . . . 1 . . . 1 . . 1 1 1 1 1 1 2 2 2 3 . 1 . 9 2 . . 11 12 1 6 7 Corruption Purged 22 | . . . . . . . . . 3 . . . . . . 1 . . . . . . . . 6 . . . . 9 . . . . . . 3 Corruption Blocked . | . . . . . . . . . . . . . . . . . . . . . . . . . . . . . . . . . . . . . . Effects 175 | . . . . . . . . . 16 . . . 3 . . 2 4 4 . 4 2 1 19 10 4 . . . 2 5 . . 6 8 5 . 80 Message Errors 41 | . . . . . . . . . 7 . . . 2 . . . . . . 1 . . 5 1 1 . . . . . . . 2 3 . . 19 Matter Fused 48 | . . . . . . . . . 2 . . . . . . . 2 1 . . . 1 9 3 1 . . . 2 3 . . 1 1 3 . 19 Heat Flow Errors 22 | . . . . . . . . . 1 . . . . . . 1 . . . . 1 . 2 5 1 . . . . 2 . . 1 1 . . 7 Energy Discharges 19 | . . . . . . . . . . . . . . . . 1 . . . . 1 . . 1 1 . . . . . . . 1 . . . 14 Parts Rejected 3 | . . . . . . . . . 1 . . . . . . . . . . 1 . . . . . . . . . . . . . . 1 . . Parts Fused 3 | . . . . . . . . . . . . . . . . . . 1 . . . . . . . . . . . . . . . . . . 2 Data Loss (minor) 21 | . . . . . . . . . 3 . . . . . . . 1 1 . 1 . . 2 . . . . . . . . . 1 1 . . 11 Data Loss (major) 8 | . . . . . . . . . 1 . . . 1 . . . 1 . . 1 . . 1 . . . . . . . . . . 1 . . 2 Alerts 6 | . . . . . . . . . 1 . . . . . . . . 1 . . . . . . . . . . . . . . . 1 1 . 2 Misdirections 4 | . . . . . . . . . . . . . . . . . . . . . . . . . . . . . . . . . . . . . 4 Overload Shots . | . . . . . . . . . . . . . . . . . . . . . . . . . . . . . . . . . . . . . . Overflow Damage 13049 | . 480 364 1531 64 . 72 545 1001 838 37 210 . 98 398 89 685 367 239 . 57 224 . 700 . 29 48 . 40 . 243 123 91 47 55 494 969 2911 Projectiles 14 | . . 13 . . . . 1 . . . . . . . . . . . . . . . . . . . . . . . . . . . . . . Explosions 62 | . . . . . . . . 13 . . . . . . . . . . . . . . . . . . . . . . . . . . . . 49 Melee 12973 | . 480 351 1531 64 . 72 544 988 838 37 210 . 98 398 89 685 367 239 . 57 224 . 700 . 29 48 . 40 . 243 123 91 47 55 494 969 2862 Knockbacks 92 | . 3 . 14 2 . 1 8 11 3 . . . 2 1 1 1 5 2 . . . . 1 . . . . . . 1 . . . 1 1 4 30 Impact 87 | . 3 . 14 2 . 1 7 10 2 . . . 2 1 1 1 5 2 . . . . 1 . . . . . . 1 . . . 1 1 4 28 Kinetic . | . . . . . . . . . . . . . . . . . . . . . . . . . . . . . . . . . . . . . . Secondary 5 | . . . . . . . 1 1 1 . . . . . . . . . . . . . . . . . . . . . . . . . . . 2 Self-Inflicted Damage 309 | . . . . . . . . 151 . . . . . . . . . . . . . . . . . . . . . . . . . . . . 158 Shots 3 | . . . . . . . . 1 . . . . . . . . . . . . . . . . . . . . . . . . . . . . 2 Rammed . | . . . . . . . . . . . . . . . . . . . . . . . . . . . . . . . . . . . . . . Targets Rammed 13 | . . . . . . . . . . . . . . . . . . . . . . . . . . . . . . . . . . . . . 13 Kicked 13 | . . . . . . . . . . . . . . . . . . . . . . . . . . . . . . . . . . . . . 13 Crushed . | . . . . . . . . . . . . . . . . . . . . . . . . . . . . . . . . . . . . . . Highest Temperature 357 | . 3 . 16 . . 9 8 13 204 178 138 106 104 198 119 295 168 142 3 36 226 112 286 351 357 . 35 18 84 276 147 61 276 286 325 138 318 Average Temperature 49 | . 3 . 7 . . 5 5 10 60 43 37 36 38 59 43 48 51 55 2 10 26 66 42 81 86 . 28 5 37 32 51 30 56 49 54 29 62 Received Heat Transfer 3419 | . 315 45 306 6 . 256 465 360 51 . 117 . 12 12 . 51 126 18 . 135 63 . 108 9 27 . 37 12 . 33 9 9 75 . 150 180 432 Effects 4 | . . . . . . . . . . . . . . . . . . . . . . . 1 1 1 . . . . . . . . . 1 . . Energy Bleed 1 | . . . . . . . . . . . . . . . . . . . . . . . . 1 . . . . . . . . . . . . . Interference 2 | . . . . . . . . . . . . . . . . . . . . . . . 1 . 1 . . . . . . . . . . . . Matter Decay 1 | . . . . . . . . . . . . . . . . . . . . . . . . . . . . . . . . . . . 1 . . Siege Activations . | . . . . . . . . . . . . . . . . . . . . . . . . . . . . . . . . . . . . . . Martial Activations 1 | . . . . . . . . . . . . . . . . . . . . . . . . . . . . . . . . . . . . . 1 Total Turns 9 | . . . . . . . . . . . . . . . . . . . . . . . . . . . . . . . . . . . . . 9 Longest Duration 9 | . . . . . . . . . . . . . . . . . . . . . . . . . . . . . . . . . . . . . 9 Shielding Activations . | . . . . . . . . . . . . . . . . . . . . . . . . . . . . . . . . . . . . . . Robots Disrupted 1 | . . . . . . . . . . . . . . . . . . . . . . . . . . . . . . . . . . . . . 1 Combat Hostiles . | . . . . . . . . . . . . . . . . . . . . . . . . . . . . . . . . . . . . . . Robots Corrupted 135 | . 11 5 29 . . 2 13 21 6 . . . . 2 . 2 1 1 . 1 4 . 2 . . . . . . 2 . . . 1 5 8 19 Combat Hostiles 83 | . 9 1 15 . . 2 10 21 3 . . . . . . 1 1 1 . 1 1 . . . . . . . . . . . . 1 . 5 11 Parts Fried 187 | . 21 14 36 . . 4 9 26 5 . . . . 1 . 5 . . . 3 5 . 3 . . . . . . 2 2 . . . 7 13 31 Impact Corruptions 358 | . 28 13 74 5 . 2 24 41 23 . . . 2 9 1 11 6 2 . 2 5 . 12 . . . . . . 3 2 . 1 2 10 18 62 Robots Melted . | . . . . . . . . . . . . . . . . . . . . . . . . . . . . . . . . . . . . . . Combat Hostiles . | . . . . . . . . . . . . . . . . . . . . . . . . . . . . . . . . . . . . . . Parts Melted 11 | . . . . . . . . . . . . . . . . . . . . 2 . . 3 . . . . . . . . . 3 . . 2 1 Heat Transferred . | . . . . . . . . . . . . . . . . . . . . . . . . . . . . . . . . . . . . . . Parts Sabotaged . | . . . . . . . . . . . . . . . . . . . . . . . . . . . . . . . . . . . . . . Parts Stolen . | . . . . . . . . . . . . . . . . . . . . . . . . . . . . . . . . . . . . . . Parts Stripped . | . . . . . . . . . . . . . . . . . . . . . . . . . . . . . . . . . . . . . . Power Chain Reactions . | . . . . . . . . . . . . . . . . . . . . . . . . . . . . . . . . . . . . . . Alert | -11 -10 -10 -9 -9 -9 -8 -8 -8 -7 -7 -7 -7 -6 -6 -6 -6 -6 -6 -6 -5 -5 -5 -5 -5 -5 -5 -4 -4 -4 -4 -4 -4 -4 -3 -3 -2 -1 ------- Run | Yrd Mat Min Mat Min Exi Min Mat Gar Fac Low Low Zio Pro Fac Was Fac Low Low Dat Pro Fac Was Fac Upp Upp Zhi Pro Fac Was Fac Upp Upp War Pro Res Res Acc Maximum Alert Level 5 | . 1 . 3 1 . . 2 5 4 . . . . . . 1 . . . . 1 . 2 . . . . . . . . . . . 2 2 4 Low Security (%) 36 | 100 39 100 30 . . 100 70 . . . . . . 100 100 80 . . . . 96 100 66 . . . . 100 100 100 . . . . 2 . . Level 1 21 | . 60 . 26 100 . . 3 3 . . . . . . . 19 . . . . 3 . 31 . . . . . . . . . . . 92 62 5 Level 2 13 | . . . 30 . . . 25 22 . . . . . . . . . . . . . . 1 . . . . . . . . . . . 5 37 26 Level 3 17 | . . . 12 . . . . 29 82 . . . . . . . . . . . . . . . . . . . . . . . . . . . 37 Level 4 9 | . . . . . . . . 32 17 . . . . . . . . . . . . . . . . . . . . . . . . . . . 30 Level 5 1 | . . . . . . . . 13 . . . . . . . . . . . . . . . . . . . . . . . . . . . . . High Security . | . . . . . . . . . . . . . . . . . . . . . . . . . . . . . . . . . . . . . . Max Security . | . . . . . . . . . . . . . . . . . . . . . . . . . . . . . . . . . . . . . . Peak Influence 1877 | . 351 144 734 305 . 30 531 1877 1287 . . . . 112 37 274 . . . . 212 51 433 . . . . 94 3 76 . . . . 422 627 1403 Initial 984 | . . 129 11 285 . . 3 331 984 . . . . 21 32 . . . . . 130 51 . . . . . . 3 . . . . . 244 218 360 Average 455 | . 186 60 361 252 . 2 174 1062 1001 . . . . 27 12 148 . . . . 149 23 135 . . . . 29 1 41 . . . . 288 390 868 Influence Increases 17851 | . 749 286 1468 121 . 70 938 1636 1113 20 355 . 100 399 59 1003 730 330 . 455 410 . 906 60 375 15 30 206 . 329 265 74 249 190 1313 1046 2551 Destroy 0b10 Robot/C 7420 | . 460 140 720 60 . 60 540 700 440 . 120 . 60 100 . 280 200 80 . 60 100 . 260 . 100 . 20 . . 40 100 60 140 80 280 640 1580 Destroy 0b10 Robot/NC 925 | . 20 40 150 5 . . 50 10 85 5 5 . . 30 . 40 . 15 . 10 30 . 40 . . 15 . 5 . 40 10 10 . 10 70 70 160 Destroy Leader 1590 | . 96 30 200 10 . 10 148 20 142 . 20 . 10 30 . 52 20 10 . 10 50 . 102 . 20 . 10 2 . 8 20 . . 10 90 134 336 Allied During Kill 212 | . . 30 8 . . . . 26 64 . . . . . . 54 . . . . . . . . . . . . . . . 4 4 . . . 22 Trap Triggered on 0b10 140 | . . . 10 . . . . . 10 . . . . . . 50 . . . . 10 . 40 . . . . . . 10 . . . . . . 10 Successful Hack 703 | . 20 . 13 . . . 18 37 132 . . . . 46 . 110 . . . . 94 . 102 . . . . 25 . 22 . . . . 33 13 38 Select Force Hacks 200 | . 60 . 60 . . . 60 . . . . . . . . 20 . . . . . . . . . . . . . . . . . . . . . Disable Machine 225 | . 15 15 . . . . 30 15 30 . . . . 15 . . . . . . . . 45 . . . . 15 . 30 . . . . 15 . . Anti-Garrison Action 750 | . . . . . . . . 750 . . . . . . . . . . . . . . . . . . . . . . . . . . . . . Destroy Structure 646 | . 3 1 7 1 . . 17 63 30 . . . . 13 59 22 . . . . 36 . 62 . . . . 24 . 44 . . . . 120 39 105 Advance Influence 150 | . . . . . . . . . . . . . . . . . . . . . . . . . . . . . . . . . . . 150 . . Partial Spotted 795 | . . . 15 . . . 30 . 75 . . . . 135 . 30 . . . . 75 . 60 . . . . 30 . 45 . . . . 75 90 135 Lose Combat Pursuer 4095 | . 75 30 285 45 . . 45 15 105 15 210 . 30 30 . 345 510 225 . 375 15 . 195 60 255 . . 105 . 90 135 . 105 90 480 60 165 Influence Decreases 16460 | . 416 588 767 661 192 60 438 269 1713 624 377 651 65 340 153 835 497 291 440 248 471 146 473 359 300 219 35 195 11 253 156 259 249 50 1064 834 1761 Entered New Map 4956 | . . 204 20 447 192 . 7 179 893 474 129 651 . 14 62 . 63 77 440 . 77 95 . 161 26 209 5 . 8 . 29 36 . . 46 171 241 Time Decay 8830 | . 396 344 599 214 . 30 401 . 670 150 238 . 65 243 43 495 374 214 . 208 374 51 403 198 254 10 30 185 3 243 127 215 172 50 538 583 710 Search Patrol Dispatched 600 | . . . . . . . . . . . . . . . . 200 . . . . . . . . . . . . . . . . . . 400 . . Lost Part 1120 | . 20 20 110 . . 30 30 50 20 . 10 . . . . 20 60 . . 40 20 . 60 . 20 . . 10 . 10 . . . . 60 80 450 Lost Ally 591 | . . 20 38 . . . . 40 130 . . . . 20 48 120 . . . . . . 10 . . . . . . . . 8 77 . 20 . 60 Purge Threat 363 | . . . . . . . . . . . . . . 63 . . . . . . . . . . . . . . . . . . . . . . 300 Squads Dispatched 132 | . 6 . 6 . . . 7 . 18 . . . . 6 . 10 . . . . 8 . 17 . 1 . . 5 . 4 . . . . 21 1 22 Investigation 51 | . 4 . 4 . . . 4 . 3 . . . . 3 . 5 . . . . 5 . 8 . . . . 4 . 1 . . . . 6 1 3 Extermination 32 | . . . . . . . . . 6 . . . . 2 . 3 . . . . 1 . 4 . . . . 1 . 2 . . . . 5 . 8 Reinforcement 32 | . 2 . 2 . . . 2 . 6 . . . . 1 . 1 . . . . 2 . 5 . . . . . . 1 . . . . 6 . 4 Assault 7 | . . . . . . . 1 . 2 . . . . . . . . . . . . . . . 1 . . . . . . . . . . . 3 Garrison 10 | . . . . . . . . . 1 . . . . . . 1 . . . . . . . . . . . . . . . . . . 4 . 4 Intercept . | . . . . . . . . . . . . . . . . . . . . . . . . . . . . . . . . . . . . . . Searches Triggered 6 | . . . . . . . . . . . . . . . . 2 . . . . . . . . . . . . . . . . . . 4 . . Unchained Authorized 1 | . . . . . . . . . . . . . . . . . . . . . . . . . . . . . . 1 . . . . . . . Data Miner Redirects 5 | . . . . . . . . . . . . . . . . . . . . . 1 . . . . . . . . . . . . . . . 4 Construction Impeded 1 | . . . . . . . . . . . . . . . . . . . . . . . . . . . . . . . . . . . . . 1 Haulers Reinforced 8 | . . . . . . . . . 3 . . . . . . . . . . . 1 . 2 . . . . . . 1 . . . . . . 1 Active Scanning Responses . | . . . . . . . . . . . . . . . . . . . . . . . . . . . . . . . . . . . . . . Cargo Convoy Interrupts . | . . . . . . . . . . . . . . . . . . . . . . . . . . . . . . . . . . . . . . Stealth | -11 -10 -10 -9 -9 -9 -8 -8 -8 -7 -7 -7 -7 -6 -6 -6 -6 -6 -6 -6 -5 -5 -5 -5 -5 -5 -5 -4 -4 -4 -4 -4 -4 -4 -3 -3 -2 -1 --------- Run | Yrd Mat Min Mat Min Exi Min Mat Gar Fac Low Low Zio Pro Fac Was Fac Low Low Dat Pro Fac Was Fac Upp Upp Zhi Pro Fac Was Fac Upp Upp War Pro Res Res Acc Distress Signals 38 | . 2 . 5 . . . 1 . 2 . . . . . . 4 . . . . . . 3 . . . . 1 . 1 . . 3 . 4 8 4 Communications Jammed . | . . . . . . . . . . . . . . . . . . . . . . . . . . . . . . . . . . . . . . Distress Signals . | . . . . . . . . . . . . . . . . . . . . . . . . . . . . . . . . . . . . . . Times Spotted 807 | . 39 8 67 5 . 3 39 31 40 1 20 . 6 7 1 35 44 22 . 35 9 . 27 4 21 . 4 11 6 11 13 3 83 8 58 43 103 Peak Tracking Total 22 | . 5 3 10 3 . 3 7 5 5 2 5 . 3 2 1 11 7 4 . 10 2 . 7 4 11 . 3 5 6 4 6 1 22 4 7 5 6 Tactical Retreats 119 | . 4 2 12 1 . . 3 1 4 1 5 . 2 1 . 8 13 7 . 7 1 . 4 1 7 . . 2 . 2 3 . 4 2 13 2 7 Traps | -11 -10 -10 -9 -9 -9 -8 -8 -8 -7 -7 -7 -7 -6 -6 -6 -6 -6 -6 -6 -5 -5 -5 -5 -5 -5 -5 -4 -4 -4 -4 -4 -4 -4 -3 -3 -2 -1 ------- Run | Yrd Mat Min Mat Min Exi Min Mat Gar Fac Low Low Zio Pro Fac Was Fac Low Low Dat Pro Fac Was Fac Upp Upp Zhi Pro Fac Was Fac Upp Upp War Pro Res Res Acc Traps Triggered 27 | . 2 . . . . . 2 5 2 . . . . 1 . 2 . . . . 3 . . . . . . 1 . . . . . . 2 . 7 Indirectly . | . . . . . . . . . . . . . . . . . . . . . . . . . . . . . . . . . . . . . . Trap Hack Attempts . | . . . . . . . . . . . . . . . . . . . . . . . . . . . . . . . . . . . . . . Triggered . | . . . . . . . . . . . . . . . . . . . . . . . . . . . . . . . . . . . . . . Disarmed . | . . . . . . . . . . . . . . . . . . . . . . . . . . . . . . . . . . . . . . Reprogrammed 20 | . . . . . . . . . 6 . . . . . . 8 . . . . 6 . . . . . . . . . . . . . . . . Reused 26 | . . . 1 . . . . . 1 . . . 2 . . 5 . 2 . 8 1 . 4 . . . . . . 1 . . . . . . 1 Traps Extracted 12 | . . . . . . . . . 6 1 . . . . . . . 1 . 3 . . . . . . . . . . . . 1 . . . . Installed 33 | . . . 1 . . . . . 3 2 2 . 2 . . 1 . 3 . 11 . . 4 . . . . . . 1 . . . . . . 3 Triggered 26 | . . . 1 . . . . . 1 . . . 2 . . 5 . 2 . 8 1 . 4 . . . . . . 1 . . . . . . 1 Most Traps Carried 13 | . . 4 4 3 3 3 3 3 6 6 6 6 6 4 4 4 3 12 12 12 8 8 8 4 4 4 4 4 4 4 3 12 13 13 13 13 13 Machines | -11 -10 -10 -9 -9 -9 -8 -8 -8 -7 -7 -7 -7 -6 -6 -6 -6 -6 -6 -6 -5 -5 -5 -5 -5 -5 -5 -4 -4 -4 -4 -4 -4 -4 -3 -3 -2 -1 ---------- Run | Yrd Mat Min Mat Min Exi Min Mat Gar Fac Low Low Zio Pro Fac Was Fac Low Low Dat Pro Fac Was Fac Upp Upp Zhi Pro Fac Was Fac Upp Upp War Pro Res Res Acc Machines Disabled 25 | . 1 1 . . . . 2 9 2 . . . . 1 . . . . . . . . 3 . . . . 1 . 2 . 2 . . 1 . . Max in Single Turn 2 | . 1 . . . . . 1 2 1 . . . . 1 . . . . . . . . 1 . . . . 1 . 1 . 1 . . 1 . . Garrison Access 8 | . . . . . . . . . 2 . . . . . . 1 . . . . . . 1 . . . . . . 1 . . . . 1 2 . Garrison Relay 5 | . . . . . . . . 5 . . . . . . . . . . . . . . . . . . . . . . . . . . . . . Phase Generator 1 | . . . . . . . . 1 . . . . . . . . . . . . . . . . . . . . . . . . . . . . . Machines Repaired . | . . . . . . . . . . . . . . . . . . . . . . . . . . . . . . . . . . . . . . Machines Dismantled . | . . . . . . . . . . . . . . . . . . . . . . . . . . . . . . . . . . . . . . Machines Sabotaged . | . . . . . . . . . . . . . . . . . . . . . . . . . . . . . . . . . . . . . . Overloaded Fab Kills . | . . . . . . . . . . . . . . . . . . . . . . . . . . . . . . . . . . . . . . Hacking | -11 -10 -10 -9 -9 -9 -8 -8 -8 -7 -7 -7 -7 -6 -6 -6 -6 -6 -6 -6 -5 -5 -5 -5 -5 -5 -5 -4 -4 -4 -4 -4 -4 -4 -3 -3 -2 -1 --------- Run | Yrd Mat Min Mat Min Exi Min Mat Gar Fac Low Low Zio Pro Fac Was Fac Low Low Dat Pro Fac Was Fac Upp Upp Zhi Pro Fac Was Fac Upp Upp War Pro Res Res Acc Machines Accessed 175 | . 9 . 11 1 2 . 7 4 22 1 1 . . 11 . 19 3 1 3 1 12 . 16 . . 4 . 7 . 8 1 . 4 . 14 6 7 Terminals 65 | . 7 . 6 . . . 4 4 10 . . . . 8 . 11 1 . . 1 1 . 2 . . . . 1 . 1 . . . . 7 1 . Fabricators 25 | . . . . . . . . . 5 . . . . 2 . 3 . . . . 2 . 6 . . . . 3 . 2 . . . . . 1 1 Repair Stations 13 | . . . 1 . . . . . 2 . . . . . . 1 . . . . 1 . 4 . . . . 1 . 1 . . . . . 1 1 Recycling Units 18 | . 2 . 2 . . . 2 . 1 . . . . . . 1 . . . . 4 . 1 . . . . . . 3 . . . . 1 . 1 Scanalyzers 18 | . . . 2 . . . . . 2 . . . . 1 . 2 . . . . 3 . 1 . . . . 1 . . . . . . 3 . 3 Garrison Access 16 | . . . . . . . 1 . 2 . . . . . . 1 . . . . 1 . 2 . . . . 1 . 1 . . . . 3 3 1 Total Hacks 451 | . 24 . 27 1 2 . 16 7 63 1 1 . . 34 . 54 11 1 23 2 33 . 32 . . 16 . 18 . 18 1 . 7 . 23 13 23 Successful 268 | . 12 . 16 1 2 . 7 3 39 1 1 . . 19 . 31 11 1 23 2 18 . 19 . . 16 . 12 . 6 1 . 7 . 6 5 9 Failed 181 | . 12 . 10 . . . 9 4 23 . . . . 15 . 23 . . . . 15 . 13 . . . . 6 . 12 . . . . 17 8 14 Catastrophic 33 | . . . . . . . 3 1 4 . . . . 1 . 3 . . . . 3 . 3 . . . . 2 . 5 . . . . 5 2 1 Database Lockouts 2 | . . . 1 . . . . . 1 . . . . . . . . . . . . . . . . . . . . . . . . . . . . Manual 160 | . 21 . 17 . 1 . 14 1 20 . . . . 15 . 22 . . . . 8 . 10 . . . . 7 . 5 . . 1 . 8 7 3 Terminals 178 | . 22 . 18 . . . 11 7 25 . . . . 24 . 35 3 . . 2 6 . 3 . . . . 3 . 2 . . . . 11 6 . Fabricators 74 | . . . . . . . . . 16 . . . . 6 . 10 . . . . 6 . 12 . . . . 8 . 6 . . . . . 2 8 Repair Stations 26 | . . . 3 . . . . . 4 . . . . . . 2 . . . . 2 . 7 . . . . 2 . 2 . . . . . 2 2 Recycling Units 31 | . 2 . 2 . . . 4 . 2 . . . . . . 1 . . . . 7 . 2 . . . . . . 7 . . . . 3 . 1 Scanalyzers 58 | . . . 4 . . . . . 13 . . . . 4 . 5 . . . . 10 . 4 . . . . 2 . . . . . . 5 . 11 Garrison Access 23 | . . . . . . . 1 . 3 . . . . . . 1 . . . . 2 . 4 . . . . 3 . 1 . . . . 4 3 1 Terminal Hacks 116 | . 5 . 2 1 2 . . 3 9 1 1 . . 11 . 13 11 1 23 2 3 . 2 . . 16 . . . . 1 . 7 . 1 1 . Record 30 | . . . . . 1 . . . . 1 . . . . . . 10 . 6 2 . . . . . 4 . . . . . . 6 . . . . Part Schematic 14 | . . . . . . . . . 1 . . . . 1 . . . . 8 . . . . . . 4 . . . . . . . . . . . Robot Schematic 8 | . 1 . . . . . . . 1 . . . . . . . . . 6 . . . . . . . . . . . . . . . . . . Robot Analysis 6 | . . . 1 . . . . . . . . . . 1 . . . . . . . . . . . 4 . . . . . . . . . . . Prototype ID Bank 8 | . . . . . . . . . . . . . . 1 . . . . 3 . . . . . . 4 . . . . . . . . . . . Open Door 7 | . . . . 1 . . . 1 . . 1 . . . . . 1 1 . . . . . . . . . . . . 1 . 1 . . . . Level Access Points 1 | . . . . . . . . . . . . . . . . . . . . . . . . . . . . . . . . . . . . 1 . Branch Access Points 3 | . . . . . . . . . 1 . . . . 1 . 1 . . . . . . . . . . . . . . . . . . . . . Emergency Access Points 1 | . . . . . . . . 1 . . . . . . . . . . . . . . . . . . . . . . . . . . . . . Machine Index 1 | . . . . . . . . . . . . . . . . . . . . . 1 . . . . . . . . . . . . . . . . Terminal Index 1 | . 1 . . . . . . . . . . . . . . . . . . . . . . . . . . . . . . . . . . . . Fabricator Index 1 | . . . . . . . . . . . . . . . . 1 . . . . . . . . . . . . . . . . . . . . . Unreport Threat 1 | . . . . . . . . . . . . . . 1 . . . . . . . . . . . . . . . . . . . . . . . Locate Traps 10 | . 2 . 1 . . . . . 1 . . . . 3 . 2 . . . . . . 1 . . . . . . . . . . . . . . Reprogram Traps 5 | . . . . . . . . . 1 . . . . . . 2 . . . . 2 . . . . . . . . . . . . . . . . Transport Status 1 | . . . . . . . . . . . . . . . . 1 . . . . . . . . . . . . . . . . . . . . . Recall Investigation 2 | . . . . . . . . . . . . . . . . 2 . . . . . . . . . . . . . . . . . . . . . Recall Extermination 3 | . . . . . . . . . 1 . . . . 1 . 1 . . . . . . . . . . . . . . . . . . . . . Hauler Manifests 9 | . 1 . . . . . . . 2 . . . . 1 . 3 . . . . . . 1 . . . . . . . . . . . 1 . . Registered Prototypes 2 | . . . . . . . . . 1 . . . . 1 . . . . . . . . . . . . . . . . . . . . . . . Security Stations 1 | . . . . . . . . 1 . . . . . . . . . . . . . . . . . . . . . . . . . . . . . Proto ID Catalog 1 | . . . . . 1 . . . . . . . . . . . . . . . . . . . . . . . . . . . . . . . . Fabricator Hacks 32 | . . . . . . . . . 5 . . . . 2 . 4 . . . . 3 . 6 . . . . 4 . 2 . . . . . . 6 Network Status 5 | . . . . . . . . . 2 . . . . . . . . . . . 1 . 1 . . . . 1 . . . . . . . . . Load Schematic 15 | . . . . . . . . . 1 . . . . 2 . 2 . . . . 1 . 3 . . . . 2 . 1 . . . . . . 3 Build 12 | . . . . . . . . . 2 . . . . . . 2 . . . . 1 . 2 . . . . 1 . 1 . . . . . . 3 Repair Station Hacks 13 | . . . 2 . . . . . 3 . . . . . . 2 . . . . . . 2 . . . . 2 . 1 . . . . . 1 . Scan Component 6 | . . . 1 . . . . . 2 . . . . . . 1 . . . . . . 1 . . . . 1 . . . . . . . . . Repair 5 | . . . 1 . . . . . 1 . . . . . . 1 . . . . . . 1 . . . . 1 . . . . . . . . . Refit 2 | . . . . . . . . . . . . . . . . . . . . . . . . . . . . . . 1 . . . . . 1 . Recycling Unit Hacks 6 | . . . . . . . . . 1 . . . . . . . . . . . 3 . 1 . . . . . . 1 . . . . . . . Retrieve Components 6 | . . . . . . . . . 1 . . . . . . . . . . . 3 . 1 . . . . . . 1 . . . . . . . Scanalyzer 35 | . . . 3 . . . . . 10 . . . . 3 . 4 . . . . 6 . 2 . . . . 2 . . . . . . 2 . 3 Insert Component 10 | . . . . . . . . . 2 . . . . 1 . 1 . . . . 2 . 1 . . . . 1 . . . . . . 1 . 1 Analyze 8 | . . . . . . . . . 3 . . . . 2 . 1 . . . . 1 . 1 . . . . . . . . . . . . . . Retrieve Study 17 | . . . 3 . . . . . 5 . . . . . . 2 . . . . 3 . . . . . . 1 . . . . . . 1 . 2 Garrison Access Hacks 9 | . . . . . . . 1 . 2 . . . . . . 1 . . . . . . 1 . . . . . . 1 . . . . 1 2 . Unlock Access 1 | . . . . . . . 1 . . . . . . . . . . . . . . . . . . . . . . . . . . . . . . Seal Access 8 | . . . . . . . . . 2 . . . . . . 1 . . . . . . 1 . . . . . . 1 . . . . 1 2 . Unauthorized Hacks 57 | . 7 . 9 . . . 6 . 9 . . . . 3 . 7 . . . . 3 . 5 . . . . 4 . 1 . . . . 2 1 . Terminals 30 | . 5 . 7 . . . 4 . 4 . . . . 2 . 4 . . . . 1 . 1 . . . . 1 . . . . . . 1 . . Assimilate 9 | . . . . . . . . . 3 . . . . 2 . 1 . . . . . . 1 . . . . 1 . . . . . . 1 . . Botnet 9 | . 2 . 2 . . . . . 1 . . . . . . 3 . . . . 1 . . . . . . . . . . . . . . . . Skim 12 | . 3 . 5 . . . 4 . . . . . . . . . . . . . . . . . . . . . . . . . . . . . . Fabricators 15 | . . . . . . . . . 4 . . . . 1 . 2 . . . . 1 . 3 . . . . 3 . . . . . . . 1 . Report 1 | . . . . . . . . . . . . . . . . 1 . . . . . . . . . . . . . . . . . . . . . Prioritize 3 | . . . . . . . . . 1 . . . . . . . . . . . . . 1 . . . . 1 . . . . . . . . . Liberate 1 | . . . . . . . . . 1 . . . . . . . . . . . . . . . . . . . . . . . . . . . . Haulers 2 | . . . . . . . . . 1 . . . . . . . . . . . . . . . . . . 1 . . . . . . . . . Download 1 | . . . . . . . . . . . . . . . . 1 . . . . . . . . . . . . . . . . . . . . . Recompile 7 | . . . . . . . . . 1 . . . . 1 . . . . . . 1 . 2 . . . . 1 . . . . . . . 1 . Repair Stations . | . . . . . . . . . . . . . . . . . . . . . . . . . . . . . . . . . . . . . . Recycling Units 12 | . 2 . 2 . . . 2 . 1 . . . . . . 1 . . . . 1 . 1 . . . . . . 1 . . . . 1 . . Recyclers 6 | . . . . . . . . . 1 . . . . . . 1 . . . . 1 . 1 . . . . . . 1 . . . . 1 . . Tunnel 6 | . 2 . 2 . . . 2 . . . . . . . . . . . . . . . . . . . . . . . . . . . . . . Scanalyzers . | . . . . . . . . . . . . . . . . . . . . . . . . . . . . . . . . . . . . . . Garrison Access . | . . . . . . . . . . . . . . . . . . . . . . . . . . . . . . . . . . . . . . Data Cores Recovered 5 | . . . 1 . . . . . 1 . . . . . . 1 . . . . 1 . . . . . . . . . . . . . 1 . . Used 2 | . . . . . . . . . . . . . . . . 1 . . . . 1 . . . . . . . . . . . . . . . . Hacking Detections 119 | . 7 . 6 . . . 5 4 19 . . . . 10 . 15 1 . . . 10 . 11 . . . . 5 . 5 . . . . 10 4 7 Full Trace Events 26 | . . . 1 . . . . 1 2 . . . . 2 . 4 1 . . . 4 . 4 . . . . 1 . 1 . . . . 4 . 1 Feedback Events 4 | . . . . . . . . . 1 . . . . . . 2 . . . . . . . . . . . . . . . . . . 1 . . Corruption 4 | . . . . . . . . . 1 . . . . . . 2 . . . . . . . . . . . . . . . . . . 1 . . Feedback Blocked . | . . . . . . . . . . . . . . . . . . . . . . . . . . . . . . . . . . . . . . Robot Schematics Acquired 12 | . 1 . . . . . . . 1 . . 4 . . . . . . 6 . . . . . . . . . . . . . . . . . . Robots Built 4 | . . . . . . . . . 2 . . . . . . . . . . . . . . . . . . . . . . . . . . . 2 Authchips 1 | . . . . . . . . . . . . . . . . . . . . . . . . . . . . . . . . . . . . . 1 Time 120 | . . . . . . . . . 58 . . . . . . . . . . . . . . . . . . . . . . . . . . . 62 Total Robot Build Rating 20 | . . . . . . . . . 6 . . . . . . . . . . . . . . . . . . . . . . . . . . . 14 Part Schematics Acquired 35 | . . . . . . . . . 3 . . 14 . 2 . 2 . . 8 . 1 . 1 . . 4 . . . . . . . . . . . Parts Built 12 | . . . . . . . . . 1 . . . . . . 3 . . . . 1 . 2 . . . . 1 . 1 . . . . . . 3 Authchips 6 | . . . . . . . . . . . . . . . . . . . . . 1 . 1 . . . . 1 . 1 . . . . . . 2 Time 929 | . . . . . . . . . 117 . . . . . . 223 . . . . 64 . 204 . . . . 128 . 102 . . . . . . 91 Total Part Build Rating 83 | . . . . . . . . . 7 . . . . . . 18 . . . . 8 . 16 . . . . 8 . 8 . . . . . . 18 Part Studies Acquired 17 | . . . 3 . . . . . 5 . . . . . . 2 . . . . 3 . . . . . . 1 . . . . . . 1 . 2 Parts Repaired 5 | . . . 1 . . . . . 1 . . . . . . 1 . . . . . . 1 . . . . 1 . . . . . . . . . Time 250 | . . . 32 . . . . . 70 . . . . . . 30 . . . . . . 68 . . . . 50 . . . . . . . . . Parts Recycled . | . . . . . . . . . . . . . . . . . . . . . . . . . . . . . . . . . . . . . . Recycled Matter . | . . . . . . . . . . . . . . . . . . . . . . . . . . . . . . . . . . . . . . Retrieved Matter . | . . . . . . . . . . . . . . . . . . . . . . . . . . . . . . . . . . . . . . Retrieved Components 10 | . . . . . . . . . . . . . . . . . . . . . 6 . 1 . . . . . . 3 . . . . . . . Parts Scanalyzed 6 | . . . . . . . . . 2 . . . . 1 . 1 . . . . 1 . 1 . . . . . . . . . . . . . . Part Schematics Acquired 6 | . . . . . . . . . 2 . . . . 1 . 1 . . . . 1 . 1 . . . . . . . . . . . . . . Parts Damaged 1 | . . . . . . . . . . . . . . . . 1 . . . . . . . . . . . . . . . . . . . . . Bothacking | -11 -10 -10 -9 -9 -9 -8 -8 -8 -7 -7 -7 -7 -6 -6 -6 -6 -6 -6 -6 -5 -5 -5 -5 -5 -5 -5 -4 -4 -4 -4 -4 -4 -4 -3 -3 -2 -1 ------------ Run | Yrd Mat Min Mat Min Exi Min Mat Gar Fac Low Low Zio Pro Fac Was Fac Low Low Dat Pro Fac Was Fac Upp Upp Zhi Pro Fac Was Fac Upp Upp War Pro Res Res Acc Used RIF Installer . | . . . . . . . . . . . . . . . . . . . . . . . . . . . . . . . . . . . . . . Robots Hacked . | . . . . . . . . . . . . . . . . . . . . . . . . . . . . . . . . . . . . . . Non-combat . | . . . . . . . . . . . . . . . . . . . . . . . . . . . . . . . . . . . . . . Combat . | . . . . . . . . . . . . . . . . . . . . . . . . . . . . . . . . . . . . . . Robot Hacks Applied . | . . . . . . . . . . . . . . . . . . . . . . . . . . . . . . . . . . . . . . Relay Couplers Released 22 | . . . . . . . . 22 . . . . . . . . . . . . . . . . . . . . . . . . . . . . . Machine Destruction 22 | . . . . . . . . 22 . . . . . . . . . . . . . . . . . . . . . . . . . . . . . Fabnet Peak Effective % . | . . . . . . . . . . . . . . . . . . . . . . . . . . . . . . . . . . . . . . Robots Rewired 15 | . . . . . . . . 8 . . . . . . . . . . . . . . . . . . . . . . . 2 5 . . . . Allies Hacked . | . . . . . . . . . . . . . . . . . . . . . . . . . . . . . . . . . . . . . . Hacks Repelled . | . . . . . . . . . . . . . . . . . . . . . . . . . . . . . . . . . . . . . . Allies | -11 -10 -10 -9 -9 -9 -8 -8 -8 -7 -7 -7 -7 -6 -6 -6 -6 -6 -6 -6 -5 -5 -5 -5 -5 -5 -5 -4 -4 -4 -4 -4 -4 -4 -3 -3 -2 -1 -------- Run | Yrd Mat Min Mat Min Exi Min Mat Gar Fac Low Low Zio Pro Fac Was Fac Low Low Dat Pro Fac Was Fac Upp Upp Zhi Pro Fac Was Fac Upp Upp War Pro Res Res Acc Total Allies 51 | . . 5 . . . . . 8 3 . . . . 2 18 1 . . . . . . 2 . . . . 1 . . . 2 5 . 2 . 2 Largest Group 18 | . . 5 3 . . . . 4 4 . . . . 2 18 6 . . . . . . 1 . . . . 1 . . . 2 6 . 1 . 2 Highest-Rated Group 638 | . . 78 31 . . . . 160 160 . . . . 20 638 257 . . . . . . 26 . . . . 26 . . . 96 308 . 26 . 136 Highest-Rated Ally 68 | . . 31 16 . . . . 40 40 . . . . 10 50 46 . . . . . . 26 . . . . 26 . . . 48 64 . 26 . 68 Initial Warlord ECA Mod 9 | . . . . . . . . . 9 9 9 9 8 8 7 7 4 4 4 3 3 3 3 3 3 3 2 2 2 2 2 2 2 1 1 . . Warlord Squad Rendezvous 4 | . . . . . . . . . . . . . . 1 . 3 . . . . . . . . . . . . . . . . . . . . . Infantry 1 | . . . . . . . . . . . . . . . . 1 . . . . . . . . . . . . . . . . . . . . . Geek 1 | . . . . . . . . . . . . . . . . 1 . . . . . . . . . . . . . . . . . . . . . Pyro 1 | . . . . . . . . . . . . . . . . 1 . . . . . . . . . . . . . . . . . . . . . Ghost 1 | . . . . . . . . . . . . . . 1 . . . . . . . . . . . . . . . . . . . . . . . Total Orders 68 | . . . . . . . . . . . . . . 6 . 8 . . . . 4 . 11 . . . . 6 . 6 . 8 8 . 1 . 10 STAY 16 | . . . . . . . . . . . . . . 3 . 3 . . . . . . 2 . . . . 1 . . . 1 4 . . . 2 FOLLOW 13 | . . . . . . . . . . . . . . 3 . 2 . . . . . . 2 . . . . 1 . . . 1 3 . . . 1 EXPLORE 5 | . . . . . . . . . . . . . . . . . . . . . . . . . . . . . . . . 5 . . . . . RETURN 34 | . . . . . . . . . . . . . . . . 3 . . . . 4 . 7 . . . . 4 . 6 . 1 1 . 1 . 7 Ally Attacks 373 | . . 22 18 . . . . 21 58 . . . . . 158 29 . . . . . . . . . . . . . . 5 5 45 . . . 12 Total Damage 10128 | . . 190 190 . . . . 486 1131 . . . . . 6117 461 . . . . . . . . . . . . . . 22 163 948 . . . 420 Kills 47 | . . 5 2 . . . . 4 12 . . . . . 11 4 . . . . . . . . . . . . . . . 1 6 . . . 2 Allies Corrupted 3 | . . 1 . . . . . . . . . . . . . . . . . . . . . . . . . . . . . . 1 . . . 1 Allies Melted 2 | . . . . . . . . . . . . . . . . 1 . . . . . . . . . . . . . . . . 1 . . . . Intel | -11 -10 -10 -9 -9 -9 -8 -8 -8 -7 -7 -7 -7 -6 -6 -6 -6 -6 -6 -6 -5 -5 -5 -5 -5 -5 -5 -4 -4 -4 -4 -4 -4 -4 -3 -3 -2 -1 ------- Run | Yrd Mat Min Mat Min Exi Min Mat Gar Fac Low Low Zio Pro Fac Was Fac Low Low Dat Pro Fac Was Fac Upp Upp Zhi Pro Fac Was Fac Upp Upp War Pro Res Res Acc Active Infowar (turns) 16959 | . 34 846 356 . . . 698 4 2278 295 457 233 231 517 . 1276 793 393 26 503 784 128 1074 411 497 66 187 . . . 277 901 575 135 1243 1038 703 Sensors 2440 | . 34 846 356 . . . . . . 292 457 233 222 . . . . . . . . . . . . . . . . . . . . . . . . IFF 4640 | . . . . . . . . . . . . . . . . . 793 393 26 503 13 . . 411 497 66 187 . . . 277 901 573 . . . . Terrain 209 | . . . . . . . . . . . . . . . . . . . . . . . . . . . . . . . . . . . . 14 195 Structural 5000 | . . . . . . . 698 4 2278 3 . . 9 516 . 1276 216 . . . . . . . . . . . . . . . . . . . . T.N.C. 4 | . . . . . . . . . . . . . . . . . . . . . . . . . . . . . . . . . . . . 4 . Cloaking 5378 | . . . . . . . . . . . . . . . . 2 . . . . 771 128 1074 395 100 . . . . . . . 2 135 1243 1020 508 Spoofing 1 | . . . . . . . . . . . . . . 1 . . . . . . . . . . . . . . . . . . . . . . . Robot Analysis Total 6 | . . . 1 . . . . . . . . . . 1 . . . . . . . . . . . 4 . . . . . . . . . . . Derelict Logs Recovered 20 | . . 3 . 1 . . . . . 2 1 3 . . . . 3 1 . 1 . . . 2 . . 1 . . . 1 1 . . . . . Drone Launches 49 | . . . . . . . . . . . . . . . . 3 . . . . 4 . 7 . . . . 4 . 6 5 4 1 . 1 . 14 Drone Recoveries 45 | . . . . . . . . . . . . . . . . 3 . . . . 4 . 7 . . . . 4 . 6 5 3 1 . 1 . 11 Exploration | -11 -10 -10 -9 -9 -9 -8 -8 -8 -7 -7 -7 -7 -6 -6 -6 -6 -6 -6 -6 -5 -5 -5 -5 -5 -5 -5 -4 -4 -4 -4 -4 -4 -4 -3 -3 -2 -1 ------------- Run | Yrd Mat Min Mat Min Exi Min Mat Gar Fac Low Low Zio Pro Fac Was Fac Low Low Dat Pro Fac Was Fac Upp Upp Zhi Pro Fac Was Fac Upp Upp War Pro Res Res Acc Turns Passed 31583 | 43 1102 879 2131 440 235 391 1727 2326 2595 307 518 234 351 880 194 1438 868 444 26 503 865 128 1437 416 540 66 213 453 56 610 352 956 1068 251 1533 1813 3194 Spaces Moved 43184 | 44 700 597 1124 360 229 314 843 985 2357 897 1123 735 613 1368 254 2435 1828 995 102 1105 1803 387 2341 687 914 147 626 689 198 1131 853 728 1665 546 3146 4658 3657 Core 1 | 1 . . . . . . . . . . . . . . . . . . . . . . . . . . . . . . . . . . . . . Treads 16 | . 5 . 11 . . . . . . . . . . . . . . . . . . . . . . . . . . . . . . . . . . Legs 1361 | . . . . . . . . . 1302 . . . . . . . . . . . . . . . . . . . . . . . . . . . 59 Wheels 5356 | 43 695 597 1113 360 229 314 843 985 177 . . . . . . . . . . . . . . . . . . . . . . . . . . . . Hover 6915 | . . . . . . . . . . . . . . . . . . . . . . . . . . . . . . . . . . . . 3333 3582 Flight 29535 | . . . . . . . . . 878 897 1123 735 613 1368 254 2435 1828 995 102 1105 1803 387 2341 687 914 147 626 689 198 1131 853 728 1665 546 3146 1325 16 Fastest Speed 7 | 50 80 110 95 85 100 100 85 125 17 20 20 20 20 16 17 14 21 22 25 22 22 29 20 28 20 28 24 22 22 15 18 18 17 18 7 9 23 Average Speed 39 | 79 112 129 124 98 100 103 121 181 81 20 20 21 23 18 17 19 23 24 25 25 29 31 28 28 27 28 27 23 22 21 18 18 17 18 19 20 38 Slowest Speed 240 | 80 240 155 240 100 100 160 160 210 195 20 20 23 29 23 17 25 97 25 25 26 32 32 106 28 106 28 28 103 22 27 18 18 22 18 88 94 223 Overloaded Moves 326 | . . . . . . . . . 11 . . . . . . 11 . . . . . . 107 . 34 . 5 . . 8 . . . . 13 125 12 Propulsion Burnouts . | . . . . . . . . . . . . . . . . . . . . . . . . . . . . . . . . . . . . . . Robots Hopped 106 | . . . . . . . . . 12 . 2 . . 3 . 14 . . . . 2 2 33 . . . . 1 . 2 . . 6 . 28 1 . Potential Cave-ins 2 | . . . . . . . . . . . . . . . . . . . . . . . . . . . . . . . . . . . . 2 . Cave-ins Triggered 1 | . . . . . . . . . . . . . . . . . . . . . . . . . . . . . . . . . . . . 1 . Teleports 1 | . . . . . . . . . . . . . . . . . . . . . . . . . . . . . . . . . . . . . 1 Exploration Rate (%) 70 | 3 96 98 89 65 60 65 77 97 76 89 83 81 61 35 91 52 96 87 75 83 41 96 54 68 81 60 66 19 85 27 69 97 91 52 60 86 52 Regions Visited 37 Branch Regions 20 Pre-discovered Areas 21 | . 2 1 4 . 1 . 2 . . 1 . 2 . . . . 2 . 1 1 . . . 1 . 3 . . . . . . . . . . . Known Exits Taken 16 | . . 1 . . . 1 1 . 1 1 1 1 1 . . 1 1 . . 1 . . 1 . . . . . . 1 . . . 1 1 1 . Unknown Exits Taken 14 | 1 1 . 1 1 1 . . . . . . . . . . . . 1 1 . . . . 1 1 1 1 . . . 1 1 1 . . . . Scrap Searched 43 | . . 1 . 1 . . . . . 4 5 3 1 . . . 3 2 . 4 . . . 4 4 . 4 . . . 4 3 . . . . . Spaces Dug 290 | . 3 1 6 1 . . 17 1 30 . . . . 13 . 21 5 1 . 1 18 . 31 3 1 . . 12 . 22 2 6 . . 60 13 22 Terrain Destroyed 373 | . 3 1 6 1 . . 17 70 30 . . . . 13 . 21 5 1 . 1 18 . 31 3 1 . . 12 . 22 2 6 . . 60 13 36 Melee 290 | . 3 1 6 1 . . 17 1 30 . . . . 13 . 21 5 1 . 1 18 . 31 3 1 . . 12 . 22 2 6 . . 60 13 22 Projectile . | . . . . . . . . . . . . . . . . . . . . . . . . . . . . . . . . . . . . . . AOE 83 | . . . . . . . . 69 . . . . . . . . . . . . . . . . . . . . . . . . . . . . 14 Terrain Rammed . | . . . . . . . . . . . . . . . . . . . . . . . . . . . . . . . . . . . . . . Walls Destroyed . | . . . . . . . . . . . . . . . . . . . . . . . . . . . . . . . . . . . . . . Machines Disabled . | . . . . . . . . . . . . . . . . . . . . . . . . . . . . . . . . . . . . . . Actions | -11 -10 -10 -9 -9 -9 -8 -8 -8 -7 -7 -7 -7 -6 -6 -6 -6 -6 -6 -6 -5 -5 -5 -5 -5 -5 -5 -4 -4 -4 -4 -4 -4 -4 -3 -3 -2 -1 --------- Run | Yrd Mat Min Mat Min Exi Min Mat Gar Fac Low Low Zio Pro Fac Was Fac Low Low Dat Pro Fac Was Fac Upp Upp Zhi Pro Fac Was Fac Upp Upp War Pro Res Res Acc Total 54954 | 49 863 677 1560 421 236 363 1377 1368 2914 1021 1372 809 793 1950 397 3311 2195 1169 101 1292 2091 389 2938 902 1179 162 655 951 209 1404 1023 1520 2415 683 3834 5314 5047 Wait 8695 | . 48 50 211 34 . 30 361 124 318 110 204 61 146 512 138 788 304 143 . 128 170 . 446 206 242 . 23 216 12 188 147 724 660 126 519 399 907 Move 42946 | 43 699 596 1123 359 228 313 842 984 2334 896 1118 734 612 1362 253 2407 1827 994 101 1104 1799 382 2276 686 913 146 625 687 197 1126 852 727 1655 545 3091 4654 3656 Hop 96 | . . . . . . . . . 10 . 2 . . 3 . 13 . . . . 2 2 31 . . . . 1 . 2 . . 3 . 26 1 . Pick Up 200 | 2 9 12 22 2 4 1 16 5 27 2 1 3 1 4 . 3 4 1 . 2 7 3 8 2 . 2 . 5 . 3 1 1 1 . 5 13 28 Fast Attach 271 | 4 4 1 10 3 . 2 5 7 25 1 1 1 . 12 1 8 9 2 . 5 18 . 9 1 3 6 . 6 . 8 . 4 15 . 18 50 32 Attach 94 | . 3 . 8 . . 4 3 3 6 . 1 . 3 . . 1 5 . . 1 4 . 5 1 4 . . 3 . 2 . . . . 4 4 29 Detach 28 | . . . . . . . . . . . . . . . . 1 2 . . . 3 . 3 . 2 . . 2 . 1 . . . . 1 2 11 Swap 411 | . 18 3 12 3 . . 14 1 20 6 10 4 6 9 . 21 2 10 . 16 20 2 38 1 1 . 3 7 . 18 8 17 14 6 30 35 56 Drop 327 | . 4 1 15 5 4 . 16 7 53 3 1 4 2 14 1 10 6 3 . 3 22 . 11 1 2 4 . 7 . 6 1 5 17 . 18 54 27 Fire . | . . . . . . . . . . . . . . . . . . . . . . . . . . . . . . . . . . . . . . Melee 1616 | . 78 14 158 15 . 13 120 102 103 1 31 2 21 34 4 58 36 13 . 22 46 . 107 4 12 4 4 17 . 49 14 14 6 6 122 101 285 Ram . | . . . . . . . . . . . . . . . . . . . . . . . . . . . . . . . . . . . . . . Kick 13 | . . . . . . . . . . . . . . . . . . . . . . . . . . . . . . . . . . . . . 13 Crush . | . . . . . . . . . . . . . . . . . . . . . . . . . . . . . . . . . . . . . . Escape Stasis 40 | . . . . . . . . 24 15 . . . . . . . . . . . . . . . . . . . . . . . . . . 1 . Rewire 183 | . . . . . . . . 111 . . . . . . . . . . . . . . . . . . . . . . . 28 44 . . . . Trap 33 | . . . 1 . . . . . 3 2 2 . 2 . . 1 . 3 . 11 . . 4 . . . . . . 1 . . . . . . 3 Miscellaneous 1 | . . . . . . . . . . . 1 . . . . . . . . . . . . . . . . . . . . . . . . . . Route ------- -11/Scrapyard -10/Materials (discovered 5 exits: *Mat x3 / [*Min] / *Sub) -10/Mines (discovered 3 exits: *Mat x2 / Sub) -9/Materials (discovered 5 exits: *Mat x3 / *Min / [*Sto]) -9/Mines (discovered 4 exits: *Mat x2 / *Exi / *Zio) -9/Exiles -8/Mines -8/Materials (discovered 4 exits: *Fac x3 / Gar) -8/Garrison (discovered 3 exits: *Fac x3) -7/Factory (discovered 3 exits: *Fac / *Low x2) -7/Lower Caves -7/Lower Caves (discovered 2 exits: *Fac / *Zio) -7/Zion -6/Proximity Caves -6/Factory (discovered 3 exits: *Fac / Low x2) -6/Waste -6/Factory (discovered 5 exits: *Fac x3 / *Low x2) -6/Lower Caves -6/Lower Caves (discovered 2 exits: *Fac / *Dat) -6/Data Miner -5/Proximity Caves -5/Factory (discovered 5 exits: *Fac x3 / *Upp x2) -5/Waste -5/Factory (discovered 3 exits: *Fac / *Upp x2) -5/Upper Caves -5/Upper Caves (discovered 2 exits: *Fac / *Zhi) -5/Zhirov -4/Proximity Caves -4/Factory (discovered 4 exits: Upp x2 / Ext x2) -4/Waste -4/Factory (discovered 8 exits: Res x4 / *Upp x2 / Ext x2) -4/Upper Caves -4/Upper Caves (discovered 2 exits: *Res / *War) -4/Warlord -3/Proximity Caves -3/Research (discovered 4 exits: *Res x2 / *Tes x2) -2/Research (discovered 5 exits: *Acc x3 / [*Qua x2]) -1/Access To Epsilon Eridani History --------- Turn | Location | Event 6 | -11/Scrapyard | Discovered new exit (range 16) 44 | -11/Scrapyard | Entered Materials 306 | -10/Materials | Build established: Mutant 376 | -10/Materials | Discovered new exit (range 10) 707 | -10/Materials | Discovered new exit (range 16) 777 | -10/Materials | Discovered new exit (range 7) 840 | -10/Materials | Core integrity fell below 50% 879 | -10/Materials | Discovered new exit (range 16) 932 | -10/Materials | Discovered new exit (range 11) 1146 | -10/Materials | Entered Mines 1196 | -10/Mines | Discovered new exit (range 9) 1218 | -10/Mines | Identified exit to Materials 1332 | -10/Mines | Assisted by bots powering up and referring to "LRC-V3" 1462 | -10/Mines | Found a hidden stash of uninstalled traps 1506 | -10/Mines | Learned location of Zion (-7) 1827 | -10/Mines | Identified exit to Subcaves 2025 | -10/Mines | Entered Materials 2025 | -9/Materials | Accompanied by 3 allies 2025 | -9/Materials | Evolved 2 slots: Propulsion x1, Utility x1 2342 | -9/Materials | Destroyed 8 combat bots 2401 | -9/Materials | Discovered new exit (range 8) 2640 | -9/Materials | Discovered new exit (range 14) 2854 | -9/Materials | Discovered new exit (range 8) 2946 | -9/Materials | Core integrity fell below 50% 3185 | -9/Materials | Build established: Scavenger-Mutant 3209 | -9/Materials | Central database locked down 3548 | -9/Materials | Repaired Mace+ 3576 | -9/Materials | Build established: Mutant 3646 | -9/Materials | Discovered new exit (range 15) 3679 | -9/Materials | Learned Storage trap positions 3722 | -9/Materials | Identified exit to Materials 3756 | -9/Materials | Learned Storage interactive machine intel 3793 | -9/Materials | Learned location of Storage (-9) 3855 | -9/Materials | Learned location of 1 exit from Storage 4156 | -9/Materials | Entered Mines 4168 | -9/Mines | Discovered exit to Materials (range 10) 4317 | -9/Mines | Deemed a non-threat by the Exiles lab entrance 4317 | -9/Mines | Discovered new exit (range 5) 4324 | -9/Mines | A Derelict revealed a hidden shortcut to a safe place 4361 | -9/Mines | Found the Drone Emporium 4364 | -9/Mines | Found Prototype Device 4364 | -9/Mines | Identified Splice Drone Bay 4528 | -9/Mines | A weapon hastily lodged in a ceiling crevice suddenly fell to the ground 4537 | -9/Mines | Assembled infested the area 4596 | -9/Mines | Entered Exiles 4648 | -9/Exiles | Met 8R-AWN 4664 | -9/Exiles | Met EX-HEX 4693 | -9/Exiles | Met EX-BIN 4705 | -9/Exiles | Aligned with FarCom system 4706 | -9/Exiles | Given EX-Vault access code 4729 | -9/Exiles | Opened EX-Vault 4755 | -9/Exiles | Warned to stay clear of 0b10 Research branches 4797 | -9/Exiles | Met EX-DEC 4823 | -9/Exiles | Discovered new exit (range 10) 4831 | -9/Exiles | Entered Mines 5111 | -8/Mines | Discovered exit to Materials (range 8) 5177 | -8/Mines | Core integrity fell below 20% 5221 | -8/Mines | Lost 6 parts (1p3n2u) 5222 | -8/Mines | Entered Materials 5222 | -8/Materials | Evolved 2 slots: Propulsion x1, Utility x1 5223 | -8/Materials | Identified exit to Factory 5758 | -8/Materials | Discovered exit to Factory (range 16) 6163 | -8/Materials | Discovered exit to Factory (range 15) 6543 | -8/Materials | Destroyed 11 combat bots 6822 | -8/Materials | First assault squad dispatched 6945 | -8/Materials | Identified exit to Garrison 6949 | -8/Materials | Entered Garrison 6969 | -8/Garrison | Triggered checkpoint 7022 | -8/Garrison | Garrison Relay disabled 7103 | -8/Garrison | Triggered checkpoint 7290 | -8/Garrison | Discovered exit to Factory (range 13) 7534 | -8/Garrison | Phase Generator disabled 7573 | -8/Garrison | Triggered checkpoint 7599 | -8/Garrison | Garrison Relay disabled 7833 | -8/Garrison | Triggered checkpoint 7835 | -8/Garrison | Triggered checkpoint 7896 | -8/Garrison | Build established: Scavenger-Mutant 8031 | -8/Garrison | Discovered exit to Factory (range 3) 8195 | -8/Garrison | Triggered checkpoint 8262 | -8/Garrison | Learned Factory security intel 8307 | -8/Garrison | Garrison Relay disabled 8339 | -8/Garrison | Triggered checkpoint 8466 | -8/Garrison | Discovered exit to Factory (range 7) 8623 | -8/Garrison | Triggered checkpoint 8649 | -8/Garrison | Garrison Relay disabled 8885 | -8/Garrison | Triggered checkpoint 8945 | -8/Garrison | Triggered checkpoint 9046 | -8/Garrison | Garrison Relay disabled 9275 | -8/Garrison | Entered Factory 9275 | -7/Factory | Accompanied by 4 allies 9275 | -7/Factory | Evolved 2 slots: Propulsion x2 9945 | -7/Factory | Build established: Gladiator 10104 | -7/Factory | Lost 3 allies 10431 | -7/Factory | Fabricated H-55 Commando (x2) 10460 | -7/Factory | Discovered new exit (range 12) 10475 | -7/Factory | First assault squad dispatched 10476 | -7/Factory | Identified exit to Factory 10573 | -7/Factory | Central database locked down 11130 | -7/Factory | Fabricated Hvy. Siege Treads? 11514 | -7/Factory | Repaired Cld. Deuterium Engine 11554 | -7/Factory | Identified exit to Lower Caves 11640 | -7/Factory | Build established: Sprinter 11715 | -7/Factory | Garrison activated, responded to threat 11870 | -7/Factory | Entered Lower Caves 11871 | -7/Lower Caves | Encountered a Warlord checkpoint 11876 | -7/Lower Caves | Met a Warlord Commander 11877 | -7/Lower Caves | Learned location of Warlord (-4) 11878 | -7/Lower Caves | Warlord Commander delivered Encrypted Comm Array 11879 | -7/Lower Caves | Found Encrypted Comm Array 11934 | -7/Lower Caves | Entered a destroyed Warlord outpost 12038 | -7/Lower Caves | Learned Factory stockpile data 12091 | -7/Lower Caves | Discovered new exit (range 14) 12094 | -7/Lower Caves | Identified exit to Lower Caves 12096 | -7/Lower Caves | Learned Factory stockpile data 12177 | -7/Lower Caves | Entered another Lower Caves area 12198 | -7/Lower Caves | Activated DRS Beacon 12269 | -7/Lower Caves | Discovered exit to Factory (range 14) 12363 | -7/Lower Caves | Spotted B-75 Beast 12423 | -7/Lower Caves | Lost 4 allies 12458 | -7/Lower Caves | Encountered a Warlord checkpoint 12487 | -7/Lower Caves | Learned Factory non-interactive machine intel 12547 | -7/Lower Caves | Attracted the attention of an 0b10 checkpoint 12649 | -7/Lower Caves | Discovered new exit (range 14) 12657 | -7/Lower Caves | Identified exit to Zion 12695 | -7/Lower Caves | Entered Zion 12703 | -7/Zion | Discovered new exit (range 16) 12704 | -7/Zion | Learned location of 1 exit from Factory 12781 | -7/Zion | Given the Hacking Drone Bay 12781 | -7/Zion | Found Prototype Device 12869 | -7/Zion | Learned Factory trap positions 12876 | -7/Zion | Learned Factory emergency access door positions 12902 | -7/Zion | Identified Hacking Drone Bay 12929 | -7/Zion | Identified exit to Proximity Caves 12929 | -7/Zion | Entered Proximity Caves 13134 | -6/Proximity Caves | Attracted the attention of an 0b10 checkpoint 13186 | -6/Proximity Caves | Core integrity fell below 50% 13233 | -6/Proximity Caves | Spotted B-75 Beast 13256 | -6/Proximity Caves | Discovered exit to Factory (range 5) 13280 | -6/Proximity Caves | Entered Factory 13280 | -6/Factory | Evolved 2 slots: Propulsion x1, Weapon x1 13281 | -6/Factory | Identified exit to Lower Caves 13282 | -6/Factory | Loaded intel: 117 trap records 13285 | -6/Factory | Loaded intel: 236 non-interactive machine locations 13333 | -6/Factory | Joined by Warlord Ghost squad 13479 | -6/Factory | Watched by a mysterious "MATRIX" hacker 13766 | -6/Factory | Discovered new exit (range 8) 13769 | -6/Factory | Found Powered Armor 13850 | -6/Factory | Identified exit to Factory 14160 | -6/Factory | Sucked down chute 14160 | -6/Factory | Entered Waste 14164 | -6/Waste | Spotted C-40 Crusher 14167 | -6/Waste | Warlord forces began an assault 14192 | -6/Waste | Spotted C-40 Crusher 14209 | -6/Waste | Spotted C-40 Crusher 14210 | -6/Waste | Spotted C-40 Crusher 14210 | -6/Waste | Spotted C-40 Crusher 14236 | -6/Waste | Allies destroyed C-40 Crusher 14291 | -6/Waste | Lost 8 allies 14302 | -6/Waste | Discovered new exit (range 12) 14354 | -6/Waste | Entered Factory 14354 | -6/Factory | Accompanied by 6 allies 14487 | -6/Factory | Lost 6 allies 14507 | -6/Factory | Joined by Warlord Geek squad 14583 | -6/Factory | Discovered exit to Factory (range 5) 14592 | -6/Factory | Fabricated Weapon Mount? 14704 | -6/Factory | Search patrols dispatched 14802 | -6/Factory | Garrison activated, responded to threat 14839 | -6/Factory | Repaired Broken Powered Armor? 14884 | -6/Factory | Joined by Warlord Pyro squad 14895 | -6/Factory | Allied Derelicts emerged from ambush trap array 15052 | -6/Factory | Lost 4 allies 15054 | -6/Factory | Search patrols dispatched 15091 | -6/Factory | Discovered exit to Factory (range 6) 15322 | -6/Factory | Joined by Warlord Infantry squad 15354 | -6/Factory | Discovered exit to Factory (range 6) 15381 | -6/Factory | Fabricated Impulse Thruster Array (x1) 15792 | -6/Factory | Entered Lower Caves 15798 | -6/Lower Caves | Encountered a Warlord checkpoint 15971 | -6/Lower Caves | Learned Factory security intel 16178 | -6/Lower Caves | Attracted the attention of an 0b10 base 16186 | -6/Lower Caves | Found DCF Scrap (16 items) 16228 | -6/Lower Caves | Entered an active Warlord outpost 16229 | -6/Lower Caves | Identified exit to Lower Caves 16231 | -6/Lower Caves | Learned Research garrison access intel 16231 | -6/Lower Caves | Learned location of Armory (-3) 16652 | -6/Lower Caves | Learned Armory garrison access intel 16652 | -6/Lower Caves | Learned Factory garrison access intel 16652 | -6/Lower Caves | Learned Research stockpile data 16660 | -6/Lower Caves | Entered another Lower Caves area 16706 | -6/Lower Caves | Discovered exit to Factory (range 8) 16795 | -6/Lower Caves | Spotted B-75 Beast 17037 | -6/Lower Caves | Discovered new exit (range 7) 17104 | -6/Lower Caves | Entered Data Miner 17104 | -6/Data Miner | Discovered new exit (range 6) 17109 | -6/Data Miner | Met Data Miner 17113 | -6/Data Miner | Acquired the access code to Warlord's prototype stash 17113 | -6/Data Miner | Learned location of Section 7 (-2) 17118 | -6/Data Miner | Received God Mode back door access code from Data Miner 17129 | -6/Data Miner | Build established: Trapper-Sprinter 17130 | -6/Data Miner | Entered Proximity Caves 17164 | -5/Proximity Caves | Spotted B-75 Beast 17247 | -5/Proximity Caves | Discovered exit to Factory (range 15) 17308 | -5/Proximity Caves | Lost 4 parts (1n1u2w) 17590 | -5/Proximity Caves | Destroyed B-75 Beast 17631 | -5/Proximity Caves | System corruption reached 10% 17633 | -5/Proximity Caves | Entered Factory 17633 | -5/Factory | Evolved 2 slots: Power x1, Propulsion x1 17634 | -5/Factory | Identified exit to Upper Caves 17636 | -5/Factory | Loaded intel: 4 garrison access locations 18044 | -5/Factory | Discovered exit to Upper Caves (range 12) 18103 | -5/Factory | Fabricated Impulse Thruster Array? 18138 | -5/Factory | Incoming investigation squad redirected 18269 | -5/Factory | Discovered new exit (range 5) 18284 | -5/Factory | Discovered new exit (range 8) 18394 | -5/Factory | Discovered new exit (range 6) 18437 | -5/Factory | Targeted by mysterious "MATRIX" hacker 18498 | -5/Factory | Manually triggered Chute Trap 18498 | -5/Factory | Sucked down chute 18498 | -5/Factory | Entered Waste 18498 | -5/Waste | The area was eerily silent 18571 | -5/Waste | Found Adv. Powered Armor 18589 | -5/Waste | Discovered new exit (range 12) 18626 | -5/Waste | Entered Factory 18665 | -5/Factory | Discovered new exit (range 11) 18898 | -5/Factory | Fabricated Cld. Impulse Thruster (x1) 19235 | -5/Factory | Repaired Adv. Powered Armor 19838 | -5/Factory | Found Imp. Powered Armor 19891 | -5/Factory | Fabricated Cld. Impulse Thruster (x1) 20063 | -5/Factory | Entered Upper Caves 20242 | -5/Upper Caves | Learned Factory trap positions 20346 | -5/Upper Caves | Build established: Sprinter 20455 | -5/Upper Caves | Discovered new exit (range 7) 20479 | -5/Upper Caves | Entered another Upper Caves area 20516 | -5/Upper Caves | Discovered new exit (range 9) 20577 | -5/Upper Caves | Attracted the attention of an 0b10 outpost 20579 | -5/Upper Caves | Spotted B-75 Beast 20761 | -5/Upper Caves | Discovered new exit (range 7) 21019 | -5/Upper Caves | Entered Zhirov 21019 | -5/Zhirov | Discovered new exit (range 3) 21031 | -5/Zhirov | Learned location of Command (-1) 21031 | -5/Zhirov | Learned location of Testing (-3) 21031 | -5/Zhirov | Learned location of Quarantine (-2) 21037 | -5/Zhirov | Found Alien Artifact 21037 | -5/Zhirov | Identified Integrated Reactor 21037 | -5/Zhirov | Installed Integrated Reactor, increased core energy generation (+10) 21041 | -5/Zhirov | Found Alien Artifact 21085 | -5/Zhirov | Entered Proximity Caves 21243 | -4/Proximity Caves | Discovered new exit (range 6) 21298 | -4/Proximity Caves | Entered Factory 21298 | -4/Factory | Evolved 2 slots: Propulsion x1, Weapon x1 21299 | -4/Factory | Loaded intel: 115 trap records 21428 | -4/Factory | Repaired Imp. System Restoration Module? 21451 | -4/Factory | Identified exit to Upper Caves 21451 | -4/Factory | Identified exit to Extension 21522 | -4/Factory | Identified Transdimensional Reconstructor 21566 | -4/Factory | Fabricated Impulse Thruster Array (x1) 21751 | -4/Factory | Sucked down chute 21751 | -4/Factory | Entered Waste 21753 | -4/Waste | Spotted C-40 Crusher 21754 | -4/Waste | Spotted C-40 Crusher 21766 | -4/Waste | EMP discharged 21767 | -4/Waste | Spotted C-40 Crusher 21770 | -4/Waste | Spotted C-40 Crusher 21771 | -4/Waste | Spotted C-40 Crusher 21774 | -4/Waste | Spotted C-40 Crusher 21803 | -4/Waste | Discovered new exit (range 12) 21807 | -4/Waste | Entered Factory 21918 | -4/Factory | Fabricated Cld. Impulse Thruster (x1) 21925 | -4/Factory | Build established: Machinist-Sprinter 21994 | -4/Factory | Identified exit to Research 22402 | -4/Factory | Unchained authorized (6S-H0T) 22417 | -4/Factory | Entered Upper Caves 22502 | -4/Upper Caves | Spotted B-86 Titan 22597 | -4/Upper Caves | Destroyed B-86 Titan 22632 | -4/Upper Caves | Learned 4 Research zone layouts 22706 | -4/Upper Caves | Discovered new exit (range 7) 22769 | -4/Upper Caves | Entered another Upper Caves area 22785 | -4/Upper Caves | Discovered exit to Research (range 10) 23158 | -4/Upper Caves | Attacked by a delusional Derelict stockpiling parts 23392 | -4/Upper Caves | Build established: Trapper-Sprinter 23564 | -4/Upper Caves | Discovered new exit (range 68) 23653 | -4/Upper Caves | Learned Research stockpile data 23665 | -4/Upper Caves | Found Alien Artifact 23725 | -4/Upper Caves | Entered Warlord 23725 | -4/Warlord | Accompanied by 2 allies 23851 | -4/Warlord | Learned Armory stockpile data 23851 | -4/Warlord | Learned 4 Research zone layouts 23851 | -4/Warlord | Learned 4 Research zone layouts 23851 | -4/Warlord | Learned Quarantine security intel 23881 | -4/Warlord | Opened Warlord's prototype stash 23891 | -4/Warlord | Found Prototype Device 23891 | -4/Warlord | Identified Exp. Cloaking Device 23908 | -4/Warlord | Warlord's base attacked by MAIN.C 23927 | -4/Warlord | Met Warlord 24073 | -4/Warlord | Spotted B-90 Cyclops 24096 | -4/Warlord | Spotted B-90 Cyclops 24102 | -4/Warlord | Spotted B-86 Titan 24185 | -4/Warlord | Lost 3 allies 24258 | -4/Warlord | Warlord forces counterattacked 24280 | -4/Warlord | Spotted Executioner 24329 | -4/Warlord | Spotted Striker 24344 | -4/Warlord | Spotted Executioner 24387 | -4/Warlord | Lost 28 allies 24530 | -4/Warlord | Spotted Executioner 24559 | -4/Warlord | Found Prototype Processor 24559 | -4/Warlord | Identified Exp. Core Analyzer 24563 | -4/Warlord | Lost 4 allies 24583 | -4/Warlord | Warlord base infiltrated, sounded retreat 24584 | -4/Warlord | Enhanced Demolisher warped into view 24584 | -4/Warlord | Enhanced Demolisher warped into view 24584 | -4/Warlord | Enhanced Demolisher warped into view 24623 | -4/Warlord | Spotted Striker 24651 | -4/Warlord | System corruption reached 10% 24668 | -4/Warlord | Lost 17 allies 24688 | -4/Warlord | Spotted Striker 24688 | -4/Warlord | Spotted Striker 24760 | -4/Warlord | Lost 8 allies 24772 | -4/Warlord | Spotted Striker 24780 | -4/Warlord | Spotted Striker 24786 | -4/Warlord | Spotted Executioner 24787 | -4/Warlord | Spotted Executioner 24791 | -4/Warlord | Discovered new exit (range 12) 24793 | -4/Warlord | Entered Proximity Caves 24801 | -3/Proximity Caves | Spotter reported a threat 25044 | -3/Proximity Caves | Entered Research 25044 | -3/Research | Evolved 2 slots: Propulsion x1, Weapon x1 25045 | -3/Research | Identified exit to Testing 25046 | -3/Research | Identified exit to Research 25048 | -3/Research | Loaded intel: 4 garrison access locations 25131 | -3/Research | Found Prototype Device 25131 | -3/Research | Identified Exp. Thermal Shield 25252 | -3/Research | Identified Dimensional Node Initializer 25294 | -3/Research | Search patrols dispatched 25330 | -3/Research | Spotted B-86 Titan 25353 | -3/Research | Discovered exit to Research (range 14) 25353 | -3/Research | Spotted B-86 Titan 25398 | -3/Research | Spotted B-86 Titan 25544 | -3/Research | Search patrols dispatched 25664 | -3/Research | Garrison activated, responded to threat 25794 | -3/Research | Search patrols dispatched 25828 | -3/Research | Garrison activated, responded to threat 26044 | -3/Research | Search patrols dispatched 26157 | -3/Research | Found Prototype Device 26157 | -3/Research | Identified Exp. EM Disruption Field 26287 | -3/Research | Destroyed B-86 Titan 26545 | -3/Research | Spotted CY-PHR 26555 | -3/Research | Extracted 0b10 system backdoors from CY-PHR data collection 26577 | -3/Research | Entered another Research area 26577 | -2/Research | Warlord forces began assault on 0b10 26577 | -2/Research | Evolved 2 slots: Weapon x2 26580 | -2/Research | Identified exit to Access 26620 | -2/Research | Met up with Warlord 26632 | -2/Research | Lost 3 parts (1p2n) 26687 | -2/Research | Research machine network offline 26782 | -2/Research | Borebot progress halted 26974 | -2/Research | Found Powered Armor 26996 | -2/Research | Found Prototype Device 26996 | -2/Research | Identified Thermal Barrier 27002 | -2/Research | Discovered new exit (range 15) 27101 | -2/Research | Found Prototype Processor 27101 | -2/Research | Identified Exp. Signal Interpreter 27296 | -2/Research | Found Prototype Processor 27296 | -2/Research | Identified Exp. Terrain Scan Processor 27346 | -2/Research | Spotted Executioner 27351 | -2/Research | Borebot progress halted 27359 | -2/Research | Destroyed Executioner 27368 | -2/Research | Spotted Executioner 27379 | -2/Research | Destroyed Executioner 27385 | -2/Research | Found Exp. Core Analyzer 27391 | -2/Research | Discovered new exit (range 13) 27581 | -2/Research | Spotted Striker 27581 | -2/Research | Spotted Executioner 27591 | -2/Research | Destroyed Striker 27615 | -2/Research | Spotted Executioner 27620 | -2/Research | Lost 3 allies 27620 | -2/Research | Spotted Executioner 27621 | -2/Research | Destroyed Executioner 27626 | -2/Research | Destroyed Executioner 27708 | -2/Research | Spotted Executioner 27716 | -2/Research | Destroyed Executioner 27782 | -2/Research | Borebot progress halted 27831 | -2/Research | Found Prototype Device 27831 | -2/Research | Identified System Purifier 27937 | -2/Research | Spotted Striker 27942 | -2/Research | Spotted Striker 27993 | -2/Research | Spotted Striker 28036 | -2/Research | Spotted Striker 28063 | -2/Research | Lost 5 allies 28081 | -2/Research | Given Cave Seal Controls access code 28159 | -2/Research | Found Prototype Device 28159 | -2/Research | Identified Adv. Kinecellerator 28209 | -2/Research | Found Exp. Core Analyzer 28220 | -2/Research | Spotted B-90 Cyclops 28253 | -2/Research | Spotted Striker 28324 | -2/Research | Spotted Striker 28330 | -2/Research | Spotted Executioner 28331 | -2/Research | Destroyed Executioner 28356 | -2/Research | Crushed by falling debris 28361 | -2/Research | Lost 5 allies 28390 | -2/Research | Entered Access 28390 | -1/Access | Evolved 2 slots: Weapon x2 28496 | -1/Access | Lost 3 allies 28926 | -1/Access | Incoming investigation squad redirected 29072 | -1/Access | Discovered new exit (range 6) 29076 | -1/Access | Found Dimensional Node Initializer 29077 | -1/Access | Initialized slip node 29221 | -1/Access | Incoming investigation squad redirected 29325 | -1/Access | Destroyed 7 combat bots 29330 | -1/Access | Lost 6 parts (3n3w) 29384 | -1/Access | Garrison activated, responded to threat 29850 | -1/Access | Build established: Trapper-Mutant 29922 | -1/Access | Fabricated X-77 Beamer? 29962 | -1/Access | Lost 3 parts (2n1u) 29983 | -1/Access | Fabricated Adv. System Restoration Module (x2) 30043 | -1/Access | Fabricated Cld. Gravmag System (x1) 30224 | -1/Access | Found Prototype Device 30224 | -1/Access | Identified Exp. Shock Absorption System 30327 | -1/Access | Spotted B-99 Colossus 30424 | -1/Access | Destroyed 7 combat bots 30537 | -1/Access | Destroyed 9 combat bots 30600 | -1/Access | Garrison activated, responded to threat 30625 | -1/Access | Lost 3 parts (2u1w) 30640 | -1/Access | First assault squad dispatched 30656 | -1/Access | Incoming assault squad redirected 30664 | -1/Access | System corruption reached 10% 30867 | -1/Access | Lost 3 parts (2n1w) 31032 | -1/Access | Found Prototype Device 31032 | -1/Access | Identified Exp. Thermal Defense Suite 31165 | -1/Access | Incoming assault squad redirected 31193 | -1/Access | Spotted B-99 Colossus 31455 | -1/Access | Warped through subspace to slip node 31456 | -1/Access | Core integrity fell below 50% 31483 | -1/Access | Lost 3 allies 31486 | -1/Access | Lost 9 parts (2p4n3u) 31584 | *** | Escaped! Last Messages --------------- 31565_ ALERT: Construction progress impeded, dispatching reinforcements to local area. 31565_ Acquired 44 matter. 31566_ U-05 Engineer builds a Wall. 31566_ U-05 Engineer lays Concrete. 31566_ Kicked U-05 Engineer out of the way. 31568_ U-05 Engineer lays Concrete. 31569_ K-01 Serf cleans the Terminal. 31570_ U-05 Engineer lays Concrete. 31573_ U-05 Engineer builds a Wall. 31574_ U-05 Engineer lays Concrete. 31574_ K-01 Serf cleans the Terminal. 31575_ U-05 Engineer lays Concrete. 31579_ Dimensional Slip Node implodes. 31579_ Multireflex Exoskeleton destroyed. 31579_ Sealed Heavy Doors breached. 31579_ U-05 Engineer lays Concrete. 31581_ K-01 Serf cleans the Terminal. 31583_ System corrupted: Energy discharge (-26). [Achievement: CQB] Map ----- +----------------------------------------------------+ | ##### ##########+#########+### #??????? ? | | + #????# # +????????? | | ##### #????# # ########## | | ????# #????# # # | | ????# #????# # # | | ????# #????# # # " | | ????# #????# # #%= """ | | ????###########????# #%%#=* """ | | ???????????????????###################% +*% " | | ########????????????????????# # #[* | | #????????????????????# # %#= | | #????????????????????# "" # ########## | | #????????????????????# """ # | | #????????????????????# "R #% | | ### #????????????????????# """ # p###+###### | | # #????????????????????# "" /% ## *% | | # #????????????????????# # ## = | | # #????????????????????# # %## "= | | # #??????????????################ ## """ | | # #????????????### ####??# # p#" """ | | # #????????????# #######p ## " | | # #???????????"" %k ## | | # #??????BB???" u % ## | | # #??????BB???" p ;#= | | # ???????????" ## | | # ??????????" "@ uu ## *! | | # ??????????" "" ## * | | ### ?????????"" ####""" "" | | ??########????BB????" k #??#"""G"" | | ??????????????BB????" """ """ #??####### | | ????????????????????" """T""" #????????? | | ????????????????????########## ####### #????????? | | ?????????????????????????????###?????# #????????? | | ###??????????????????????????????????# #????????? | | #???????###????????????????????????# #????????? | | #?????##############???????????????# #????????? | | ??????# ! # #???????????????# #????????? | | ??????# # % ################# #????????? | | ####### ] + % % % % #?#??????? | | # !## # ### #????????? | | # ## # #?############### #????????? | | #* ] ##! ## ####??????#?#??????# #????#???# | | # ##########%#???????#????#???#?# #???#???#? | | ###! + % %!*%% #######???#????##??# #?#????#?# | | ??# # ########### ##############% ########## | | ??# # #?????????# | | ??#** # #?????????# | | ??#* # #?????????# ###+##########+########### | | ??###### #?????????## ##?# ## % ###?#?# | | ???????# #??????????# #### ## #####?? | +----------------------------------------------------+ Best States ------------- Heat Dissipation 87 Energy Generation 63 Energy Capacity 600 Matter Stores 300 Matter Capacity 300 Sight Range 16 Robot Scan Range 16 Terrain Scan Range 14 Terrain Scan Density 1010 Cloak Strength 4 Corruption Block 20 Armor Coverage 825 Resistance: KI 30 Resistance: TH 50 Propulsion Shielding 90 Weapon Shielding 90 Melee Speed Boost 30 Evasion (%) 68 Targeting Accuracy 20 Core Analysis 8 Recoil Reduction 2 Kinecelleration 50 Offensive Hacking 20 Defensive Hacking 14 Authchip Count 3 Trap Extractor Capacity 8 Item Schematics ----------------- System Restoration Module | -7/Factory | Scanalyzed Hacking Suite | -7/Factory | Scanalyzed Thunder Hammer | -7/Factory | Hacked Great Axe | -7/Zion | Archive Proton Cannon | -7/Zion | Archive EM Shield | -7/Zion | Archive Arc Projector | -7/Zion | Archive Power Sword | -7/Zion | Archive Remote Datajack | -7/Zion | Archive Adv. Hacking Suite | -7/Zion | Archive Launcher Guidance Computer | -7/Zion | Archive Hyp. Gauss Rifle | -7/Zion | Archive Imp. Field Recycling Unit | -7/Zion | Archive Recalibrator | -7/Zion | Archive Focal Shield | -7/Zion | Archive Gatling Laser | -7/Zion | Archive Tesla Rifle | -7/Zion | Archive Microactuators | -6/Factory | Scanalyzed Weapon Mount | -6/Factory | Hacked Powered Armor | -6/Factory | Scanalyzed Impulse Thruster Array | -6/Factory | Downloaded Hardcell Cannon | -6/Data Miner | Free Adv. Hardlight Generator | -6/Data Miner | Free Imp. Antigrav System | -6/Data Miner | Free Neutron Cannon | -6/Data Miner | Free Prc. Matter Filter | -6/Data Miner | Free Cld. Gravmag System | -6/Data Miner | Free Lgt. Regenerative Plating | -6/Data Miner | Free Combat Drone Bay | -6/Data Miner | Free Adv. System Restoration Module | -5/Factory | Scanalyzed Cld. Impulse Thruster | -5/Factory | Scanalyzed Imp. Arc Thrower | -5/Zhirov | Free Exp. Optical Array | -5/Zhirov | Free Exp. Heat Sink | -5/Zhirov | Free Assault Drone Bay | -5/Zhirov | Free Robot Schematics ------------------ M-13 Machinist | -10/Materials | Hacked L-31 Rogue | -7/Factory | Hacked K-01 Serf | -7/Zion | Archive I-36 Angel | -7/Zion | Archive X-57 Shotgunner | -7/Zion | Archive X-77 Beamer | -7/Zion | Archive A-15 Conveyor | -6/Data Miner | Free M-22 Extractor | -6/Data Miner | Free G-50 Soldier | -6/Data Miner | Free Y-64 Sentinel | -6/Data Miner | Free B-48 Gladiator | -6/Data Miner | Free B-60 Warrior | -6/Data Miner | Free Fabricated ------------ H-55 Commando | x2 | -7/Factory | Preloaded Hvy. Siege Treads | x1 | -7/Factory | Preloaded Weapon Mount | x2 | -6/Factory Impulse Thruster Array | x1 | -6/Factory Impulse Thruster Array | x1 | -5/Factory | Authchip Cld. Impulse Thruster | x1 | -5/Factory Cld. Impulse Thruster | x1 | -5/Factory | Authchip Impulse Thruster Array | x1 | -4/Factory | Authchip Cld. Impulse Thruster | x1 | -4/Factory | Authchip X-77 Beamer | x2 | -1/Access | Authchip Adv. System Restoration Module | x2 | -1/Access | Authchip Cld. Gravmag System | x1 | -1/Access | Authchip Repaired ---------- Mace | 11% | -9/Materials Cld. Deuterium Engine | 25% | -7/Factory Powered Armor | 83% | -6/Factory | Broken Adv. Powered Armor | 14% | -5/Factory Imp. System Restoration Module | 28% | -4/Factory Studied --------- Wheel | -9/Materials | Hacked Mace | -9/Materials | Hacked Lgt. Ion Engine | -9/Materials | Hacked Hvy. Flail | -7/Factory | Hacked Arm. Wheel | -7/Factory | Hacked Carbon-fiber Leg | -7/Factory | Hacked Imp. Carbon-fiber Leg | -7/Factory | Hacked Cesium-ion Thruster | -7/Factory | Hacked Lgt. Fission Core | -6/Factory | Hacked Power Sword | -6/Factory | Hacked Impulse Thruster Array | -5/Factory | Hacked Nuclear Pulse Array | -5/Factory | Hacked Impulse Thruster | -5/Factory | Hacked Lance | -4/Factory | Hacked Lgt. Particle Reactor | -3/Research | Hacked Cmb. Linear Gravjet | -1/Access | Hacked Antigrav Array | -1/Access | Hacked Alien Tech Used ----------------- Integrated Reactor Dimensional Node Initializer Transdimensional Reconstructor Achievements -------------- CQB Melee Specialist Suspicious By Nature Challenges ------------ None Game ------ Seed DroneKineticBoomstick Manual? 0 Play Time 06:47:56 Cumulative 1089.1 hours Start 2026.09.11 @ 22:28:10 End 2026.09.12 @ 20:00:23 Sessions 7 Manual Loads 0 Difficulty Rogue Special Mode None Game No. 303 Rogue 303 Adventurer 0 Explorer 0 Win Type 0 Total 50 Types 15/11/12/2/2/0/4/1/1/2 Lore% 97 Gallery% 91 Achievement% 88 Wizard Run 0 Options --------- Layout 1 ASCII 0 Keyboard 0 Movement Mouse Keybinds 0 Fullscreen 2 Font 32/SmallcapsGlow Map View 50x35 Zoom Use 0% Tactical HUD 1 Map Filters NONE Filters NONE Steam 1 RUN: b481d59b-6f9e-4bbf-9197-7665e64697dd